Cogmind - Beta 16.1 @@@ ROGUE MODE // 2026.01.28 @ 19:06:30 Player: szymekc Result: Defending 0bPrime! Performance ------------- Evolutions (8) 4000 Regions Visited (26) 5200 Robots Destroyed (539) 2695 Value Destroyed (34130) 34130 Prototype IDs (176) 3520 Alien Tech Used (9) 1800 Bonus (55411) 55411 TOTAL SCORE: 106756 Bonus ------- High Alert Combat Kills 18673 Follower Combat Kills 1187 Hunted by Unchained 500 Network Hubs Disabled 400 Registered with UFD 300 Met Optimus in HQ 500 Met Zhirov 300 Built Enhanced Grunts 300 Met R17 at Cetus 500 Found Hidden Lab 3000 Met R17 at Research 2000 Scanned by Researcher 500 Destroyed Superfortress 15000 Met Optimus at Protoforge 1000 Executed Drillbomb Mission 10000 Win 3000 Friendly Fire -1749 Cogmind --------- Core Integrity 170/1450 Matter 300/300 Energy 440/440 System Corruption 43% Temperature Cool (0) Movement Hovering (32) Location 0bPrime Parts ------- > --- POWER (2) -------- Light Quantum Reactor Improved Quantum Reactor > --- PROPULSION (11) -- Backup Propulsion VII Gravjet Array Concept Combat Aerolev Unit Concept Combat Aerolev Unit Concept Combat Aerolev Unit Concept Gyrokinetic System Concept Gyrokinetic System Concept Gyrokinetic System > --- UTILITY (4) ------ Concept Antigrav Storage Unit Experimental Optical Array Concept Core Analysis Suite Concept Cloak Mesh > --- WEAPON (6) ------- Concept Heavy Railcannon Concept EMP Blanket Launcher Concept Deflector Sword > --- INVENTORY (25) --- Enhanced Biometal Leg Concept Thermoelectric Network Concept Chromion Battery (800) Concept NT7 Matterbank (750) Experimental Propulsion Shielding Medium Regenerative Plating Graphene Brace Concept Matter Streamer Crosscalibrator High-powered Transdimensional Reconstructor Concept Disintegration Ray (2) Potential Cannon Concept Plasma Driver Improved Potential Cannon Concept Tiamat Rocket Array Peak State ------------ > --- POWER ------------ Improved Quantum Reactor Experimental Antimatter Reactor > --- PROPULSION ------- Experimental Antigrav System Experimental Antigrav System Gravjet Array Gravjet Array Concept Combat Aerolev Unit Concept Combat Aerolev Unit Concept Combat Aerolev Unit Concept Gyrokinetic System Concept Gyrokinetic System > --- UTILITY ---------- Concept Antigrav Storage Unit Experimental Optical Array Concept Core Analysis Suite Concept Cloak Mesh > --- WEAPON ----------- Concept XC Strikerail Concept XC Strikerail Concept XC Strikerail Concept XC Strikerail Concept XC Strikerail Concept XC Strikerail > --- INVENTORY -------- Gravjet Array Concept Gyrokinetic System Concept Thermoelectric Network Concept Chromion Battery Concept NT7 Matterbank Concept Cloak Mesh Medium Regenerative Plating Graphene Brace Experimental Remote Shield Advanced Remote Force Field Concept Matter Streamer Crosscalibrator High-powered Transdimensional Reconstructor Concept Disintegration Ray Potential Cannon Concept Plasma Driver Improved Potential Cannon Concept Heavy Railcannon Concept EMP Blanket Launcher Concept Tiamat Rocket Array Concept Deflector Sword [Rating: 289] Favorites ----------- Power Improved Quantum Reactor Engine Light Ion Engine Power Core Light Fission Core Reactor Improved Quantum Reactor Propulsion Combat Linear Gravjet Treads Light Treads Leg Flexi-carbon Leg Wheel Subdweller Monowheel Hover Unit Combat Linear Gravjet Flight Unit Improved Cesium-ion Thruster Utility High-capacity Storage Unit Device Seismic Detector Storage High-capacity Storage Unit Processor Spectral Analyzer Hackware System Shield Protection Medium Regenerative Plating Weapon Power Sword Energy Gun Concept Disintegration Ray Energy Cannon Enhanced Nova Cannon Ballistic Gun Concept XC Strikerail Ballistic Cannon Enhanced Hardcell Cannon Launcher Concept EMP Blanket Launcher Special Weapon Mining Laser Impact Weapon Gravity Flail Slashing Weapon Power Sword Piercing Weapon Spear Build | -11 -10 -10 -8 -8 -6 -6 -6 -6 -6 -6 -6 -5 -5 -5 -5 -5 -5 -4 -4 -4 -4 -3 -3 -2 -2 -2 ------- Run | Yrd Mat Sub Rec Scr Fac Was Fac Ext Cet Arc Hub Fac Was Fac Upp Upp Zhi Pro Fac Arm Lab Res Tes Res Qua Frg Slots Evolved 16 | . . . . . 8 . . . . . . 2 . . . . . . 2 . . 2 . 2 . . Power 1 | . . . . . 1 . . . . . . . . . . . . . . . . . . . . . Propulsion 9 | . . . . . 4 . . . . . . 1 . . . . . . 1 . . 2 . 1 . . Utility 2 | . . . . . 2 . . . . . . . . . . . . . . . . . . . . . Weapon 4 | . . . . . 1 . . . . . . 1 . . . . . . 1 . . . . 1 . . Parts Attached 367 | 7 5 17 8 3 30 . 3 27 15 1 11 19 . 32 4 1 3 1 14 22 1 24 22 4 12 81 Power 60 | 1 1 1 3 1 4 . . 5 4 . . 4 . 4 . . 1 . 2 4 . 4 4 . 1 16 Engine 13 | 1 1 1 2 . 1 . . 4 . . . 1 . 1 . . . . . . . . . . . 1 Core 16 | . . . 1 1 2 . . 1 . . . 3 . 3 . . . . 2 2 . . . . . 1 Reactor 31 | . . . . . 1 . . . 4 . . . . . . . 1 . . 2 . 4 4 . 1 14 Propulsion 107 | 2 . 5 2 . 10 . 2 12 3 . 6 8 . 16 . . 1 . 2 8 . 6 2 1 1 20 Treads 14 | 2 . 2 2 . . . . 4 1 . 3 . . . . . . . . . . . . . . . Leg 16 | . . . . . . . . 8 1 . 3 . . . . . 1 . . . . . 1 . . 2 Wheel 3 | . . 3 . . . . . . . . . . . . . . . . . . . . . . . . Hover 46 | . . . . . 3 . . . 1 . . 7 . 4 . . . . 2 8 . 4 1 1 1 14 Flight 28 | . . . . . 7 . 2 . . . . 1 . 12 . . . . . . . 2 . . . 4 Utility 93 | 2 2 1 2 . 8 . 1 6 5 1 3 5 . 8 2 1 . . 4 1 . 9 8 1 3 20 Device 45 | 2 . 1 . . 1 . . . 1 1 2 3 . 4 1 1 . . 2 1 . 5 5 . 3 12 Storage 11 | . 2 . . . . . . 2 1 . . . . 1 . . . . 1 . . 2 1 . . 1 Processor 15 | . . . . . 2 . . . . . . 1 . 3 . . . . 1 . . 1 1 1 . 5 Hackware 9 | . . . 1 . 5 . . . . . 1 1 . . . . . . . . . 1 . . . . Protection 13 | . . . 1 . . . 1 4 3 . . . . . 1 . . . . . . . 1 . . 2 Artifact . | . . . . . . . . . . . . . . . . . . . . . . . . . . . Weapon 107 | 2 2 10 1 2 8 . . 4 3 . 2 2 . 4 2 . 1 1 6 9 1 5 8 2 7 25 Energy Gun 5 | . . . . . . . . . . . . . . . 1 . . . . . . . . . 1 3 Energy Cannon 16 | . 1 2 . 2 . . . 1 . . . . . . . . . 1 . . 1 1 4 1 1 1 Ballistic Gun 39 | 2 . 4 . . . . . . 1 . 2 . . 1 1 . 1 . . 8 . 1 2 . . 16 Ballistic Cannon 9 | . 1 . . . . . . . . . . . . 1 . . . . . . . . 1 1 3 2 Launcher 8 | . . 3 . . 1 . . . . . . . . . . . . . . . . 1 1 . . 2 Special Weapon 6 | . . 1 1 . 3 . . . . . . . . 1 . . . . . . . . . . . . Impact Weapon 10 | . . . . . 3 . . . . . . . . 1 . . . . 4 . . 2 . . . . Slashing Weapon 12 | . . . . . 1 . . 3 2 . . 2 . . . . . . 1 . . . . . 2 1 Piercing Weapon 2 | . . . . . . . . . . . . . . . . . . . 1 1 . . . . . . Special Melee Weapon . | . . . . . . . . . . . . . . . . . . . . . . . . . . . Unidentified Prototypes 57 | . . . . . 2 . . . 7 . 1 . . 4 . . 3 . 2 . 2 3 15 . 4 14 Corrupted Parts 1 | . . . . . . . . . . . 1 . . . . . . . . . . . . . . . System Corruption 4 | . . . . . . . . . . . 4 . . . . . . . . . . . . . . . Parts Lost 78 | . . 12 . . 6 . . 4 7 . 7 . . 9 . . 1 . 4 4 . 4 1 . . 19 Power 15 | . . 1 . . 1 . . 1 1 . 2 . . 1 . . . . 1 1 . 1 . . . 5 Propulsion 34 | . . 5 . . 3 . . 2 5 . 3 . . 6 . . . . 2 1 . . . . . 7 Utility 10 | . . 1 . . 1 . . 1 . . 1 . . 1 . . . . . 2 . 1 1 . . 1 Weapon 19 | . . 5 . . 1 . . . 1 . 1 . . 1 . . 1 . 1 . . 2 . . . 6 Highest Loss Streak 7 | . . 4 . . 2 . . 1 5 . 7 . . 4 . . 1 . 3 2 . 3 1 . . 5 To Critical Strikes 3 | . . . . . . . . . 1 . . . . . . . . . . . . . . . . 2 Average Backups 13 | . 11 17 19 16 4 5 4 7 14 14 13 5 13 11 10 10 10 10 9 9 8 11 15 15 16 19 Power . | . . 2 3 . . . . . . . . . . . . . . . . . . . . . . . Propulsion 2 | . 2 2 3 2 . . . 2 3 3 3 . 6 2 3 3 3 3 1 1 3 2 1 1 1 3 Utility 5 | . 2 4 5 7 2 1 1 2 5 6 6 3 4 3 2 2 3 3 3 2 1 4 7 8 7 7 Weapon 4 | . 6 7 7 5 . 1 2 2 3 5 3 2 2 4 5 4 2 2 2 4 2 2 4 3 4 6 Tool/Special . | . . . . . . . . . . . . . . . . . . . . . . . . . . . Unused Backups 80 | . 1 2 2 7 7 . . 3 6 . . 1 . 1 . 2 . . . . 1 7 8 . 2 30 Power 8 | . . 1 . 3 . . . . . . . . . . . . . . . . . . 2 . . 2 Propulsion 29 | . . . . 1 . . . 3 3 . . . . . . . . . . . . 4 1 . . 17 Utility 25 | . . 1 1 . 5 . . . 3 . . 1 . 1 . . . . . . . 3 5 . 1 4 Weapon 13 | . 1 . . 3 1 . . . . . . . . . . 2 . . . . 1 . . . . 5 Tool/Special 5 | . . . 1 . 1 . . . . . . . . . . . . . . . . . . . 1 2 Average Slot Usage (%) 91 | . 100 98 100 100 62 73 77 92 91 86 88 69 88 92 79 82 80 81 84 93 99 96 94 90 90 86 Engine 2 | . 14 14 3 . . . . 7 . . . 3 . 1 . . . . . . . . . . . . Core 4 | . . . 10 14 4 13 13 1 1 . . 3 11 9 11 11 8 5 6 5 . . . . . . Reactor 3 | . . . . . . . . . 10 13 12 . . . . . . . . 2 10 9 9 8 8 7 Treads 10 | . 28 22 26 28 . . . 5 12 13 16 . . . . . . . . . . . . . . . Leg 2 | . . . . . . . . 20 16 6 12 . . . . . . . . . . . . . . . Hover 13 | . . . . . 7 6 5 . 2 6 1 18 35 8 . . . . 5 39 42 44 42 39 39 35 Flight 5 | . . . . . 15 26 27 11 . . . 9 . 29 29 29 29 29 25 . . . . . . 3 Device 4 | . 16 13 4 . . 6 6 2 . 4 4 6 5 4 5 5 5 5 5 6 4 3 3 3 4 1 Storage 7 | . 11 14 14 14 . . . 2 6 6 6 2 5 5 5 5 5 5 5 5 5 4 4 4 4 4 Processor 3 | . . . . . 6 6 6 6 6 6 5 2 5 5 5 5 5 5 5 5 5 . . 1 4 7 Hackware 4 | . . . 7 14 14 6 6 6 1 . . 3 . . . . . . . . . 3 4 2 . . Protection 2 | . . . 1 . . . 3 6 10 8 8 4 5 4 5 4 4 5 5 3 5 4 4 4 4 2 Energy Cannon 5 | . 11 5 22 15 . . . . . . . . . . . . . 4 2 . . 6 5 8 4 1 Ballistic Gun 5 | . 4 14 . . . . . . . . 17 . . 1 2 5 7 5 2 19 20 11 11 9 3 13 Ballistic Cannon 1 | . 11 5 . . . . . . . . . . . . . . . . . . . . . 2 9 2 Special Weapon 2 | . . 1 5 12 3 . . . . . . . . 1 . . . . . . . . . . . . Slashing Weapon 4 | . . . . . 4 6 6 17 19 20 2 10 17 14 11 11 11 11 8 3 5 1 . . 3 3 Peak Build Rating 289 | 9 9 16 19 27 61 56 65 82 106 106 116 100 100 103 100 95 100 97 117 151 152 185 192 209 225 289 Average Rating 96 | 6 8 11 17 23 43 55 57 64 90 103 105 75 99 89 91 93 95 96 107 138 148 173 187 201 211 247 On Entrance 90 | . 9 8 16 18 27 56 56 53 74 106 106 64 99 100 88 94 95 91 97 87 148 152 183 191 205 223 Avg Prop Armor Cover (%) 8 | . . 14 14 . 16 11 11 12 9 6 6 7 6 5 . . . . 2 3 1 1 1 . . 7 Naked Turns . | . . . . . . . . . . . . . . . . . . . . . . . . . . . Heaviest Build 149 | 7 52 63 64 64 20 17 19 55 84 84 93 51 51 57 42 42 42 44 48 80 86 120 122 132 149 148 Greatest Support 176 | 40 40 40 40 40 21 20 28 135 100 100 150 71 71 77 44 44 44 44 48 106 106 135 142 157 161 176 Greatest Overweight (x) 5 | . 1 5 3 1 . . . 1 2 . 1 1 . 2 . . . . . . . . . 4 . 1 Average Overweight (x) . | . . 1 1 1 . . . . . . . . . . . . . . . . . . . . . . Largest Inventory Capacity 25 | 5 20 20 20 20 20 5 5 15 15 15 15 15 15 15 10 10 10 10 10 10 10 25 20 20 20 25 Average Capacity 16 | 5 16 20 20 20 5 5 5 8 15 15 15 8 15 11 10 10 10 10 10 10 10 18 20 20 20 22 Most Carried 25 | 3 16 20 20 20 20 5 5 15 15 15 15 14 14 15 10 10 10 10 10 10 10 20 20 20 20 25 Average Carried 14 | . 11 16 19 17 4 4 4 7 14 14 14 5 13 11 9 9 9 10 9 9 9 13 19 19 19 22 Final Capacity 25 | 5 20 20 20 20 5 5 5 15 15 15 15 15 15 10 10 10 10 10 10 10 10 20 20 20 20 25 Final Carried 25 | 3 16 20 20 20 5 5 5 15 14 15 14 13 14 10 10 10 10 10 10 8 10 20 20 20 20 25 Class Distribution -------------------- 31% | Mutant 15% | Scavenger-Mutant 11% | Sprinter 10% | Scavenger-Sprinter 9% | Hacker-Sprinter 3% | Scientist-Sprinter Dominant Class ---------------- Mutant | -10/Materials Scavenger-Mutant | -10/Subcaves Mutant | -8/Recycling Mutant | -8/Scraptown Hacker-Mutant | -6/Factory Sprinter | -6/Waste Sprinter | -6/Factory Scavenger-Mutant | -6/Extension Scavenger-Mutant | -6/Cetus Scavenger-Mutant | -6/Archives Scavenger-Tank | -6/Hub_04(d) Scavenger-Mutant | -5/Factory Scavenger-Sprinter | -5/Waste Scavenger-Sprinter | -5/Factory Sprinter | -5/Upper Caves Sprinter | -5/Upper Caves Sprinter | -5/Zhirov Sprinter | -4/Proximity Caves Sprinter | -4/Factory Skirmisher | -4/Armory Gunner | -4/Lab Hacker-Sprinter | -3/Research Hacker-Sprinter | -3/Testing Hacker-Sprinter | -2/Research Scientist-Sprinter | -2/Quarantine Scavenger-Sprinter | -2/Protoforge Resources | -11 -10 -10 -8 -8 -6 -6 -6 -6 -6 -6 -6 -5 -5 -5 -5 -5 -5 -4 -4 -4 -4 -3 -3 -2 -2 -2 ----------- Run | Yrd Mat Sub Rec Scr Fac Was Fac Ext Cet Arc Hub Fac Was Fac Upp Upp Zhi Pro Fac Arm Lab Res Tes Res Qua Frg Matter Collected 21361 | 340 143 424 98 64 460 . 39 608 225 9 474 448 . 906 70 54 84 20 235 1541 . 1075 993 451 508 12092 Remotely 1868 | . . . . . . . . . . . . . . . . . . . . . . . . . . 1868 Salvage Created 31052 | 287 426 349 166 . 532 . 188 1067 242 35 1088 509 . 2020 59 98 315 . 1117 2015 . 1404 1363 577 1304 15891 Parts 1418 | 22 25 27 9 . 32 . 15 56 10 2 63 30 . 94 1 4 3 . 50 95 . 48 88 19 71 654 Haulers Intercepted 20 | . 1 . . . . . . 2 . . . 1 . 7 . . . . 3 . . 4 1 . 1 . Recyclers Shooed 2 | . 1 . . . . . . 1 . . . . . . . . . . . . . . . . . . Parts Field Recycled . | . . . . . . . . . . . . . . . . . . . . . . . . . . . Retrieved Matter . | . . . . . . . . . . . . . . . . . . . . . . . . . . . Parts Self-Destructed 14 | . . 8 . . . . . . . . . . . . 1 3 2 . . . . . . . . . Prevented . | . . . . . . . . . . . . . . . . . . . . . . . . . . . Parts Restored 4 | . . . . . . . . . . . . . . . . . . . . . . . . . . 4 Faulty 4 | . . . . . . . . . . . . . . . . . . . . . . . . . . 4 Kills | -11 -10 -10 -8 -8 -6 -6 -6 -6 -6 -6 -6 -5 -5 -5 -5 -5 -5 -4 -4 -4 -4 -3 -3 -2 -2 -2 ------- Run | Yrd Mat Sub Rec Scr Fac Was Fac Ext Cet Arc Hub Fac Was Fac Upp Upp Zhi Pro Fac Arm Lab Res Tes Res Qua Frg Combat Hostiles Destroyed 424 | . 8 15 3 . 10 . 5 11 4 . 12 5 . 20 . . . . 11 26 . 13 20 7 11 243 Melee 58 | . . . . . 3 . 1 9 4 . . 5 . 16 . . . . 8 5 . . . . 1 6 Guns 173 | . 3 5 . . . . . . . . 12 . . 4 . . . . 1 20 . 10 9 3 3 103 Cannons 43 | . 5 3 2 . . . . 2 . . . . . . . . . . . . . . 1 2 7 21 AOE 118 | . . 7 . . 7 . 4 . . . . . . . . . . . . 1 . 3 9 . . 87 Classes Destroyed 31 | 3 4 . 2 . 4 . 1 . . . 2 . . . . 1 . . . 1 . . 2 1 . 10 Worker 17 | 2 . . . . 1 . . . . . 1 1 . 1 . . . . 1 . . 3 3 1 1 2 Builder 14 | . . . 1 . 1 . . 2 . . 2 . . . . . . . . . . 3 2 1 2 . Tunneler 9 | 8 . . . . . . . . . . . . . . . . . . . . . . . 1 . . Hauler 20 | . 1 . . . . . . 2 . . . 1 . 7 . . . . 3 . . 4 1 . 1 . Recycler 12 | 1 2 . . . 1 . 1 1 . . 1 . . 1 . . . . . . . 1 . . 3 . Carrier 1 | . . . . . . . . . . . . . . . . . . . . . . . . . . 1 Minesweeper 1 | . . . . . . . . . . . . . . . . 1 . . . . . . . . . . Mechanic 7 | . . . . . . . . . . . . . . . . . . . . 1 . . . . . 6 Operator 8 | . . . . . 2 . 1 . . . . 1 . 2 . . . . . . . . 1 . . 1 Drone 12 | . . . . . . . . . . . . . . . . . . . . . . . . 3 . 9 Watcher 17 | . . . . . 1 . . 1 . . 1 4 . 1 . . . . 1 1 . 1 . 1 2 3 Swarmer 52 | . 3 2 . . . . 4 . . . . . . 5 . . . . . 3 . 6 4 . . 25 Saboteur 4 | . . . . . . . . . . . . . . . . . . . . . . . . . . 4 Grunt 86 | . 3 . . . 6 . . 3 . . 2 . . 5 . . . . 2 13 . 3 6 . 3 40 Brawler 13 | . . . . . . . . . . . . . . . . . . . . . . . 2 . . 11 Duelist 12 | . . . . . 1 . . . . . . . . . . . . . . . . . . . . 11 Protector 14 | . . . . . . . . . . . 1 . . . . . . . . . . . . . . 13 Researcher 6 | . . . . . . . . . . . . . . . . . . . . . . . . . 1 5 Sentry 34 | . . . 3 . 1 . . 4 . . 2 . . 4 . . . . 3 1 . 1 . 2 . 13 Specialist 12 | . . . . . . . . . . . 2 . . . . . . . . 4 . . . . . 6 Hunter 29 | . . . . . . . 1 3 . . . 2 . 2 . . . . 2 2 . 3 . 2 . 12 Programmer 52 | . . . . . 2 . . 1 . . . 3 . 4 . . . . 4 2 . . 6 . 8 22 Behemoth 1 | . . . . . . . . . . . . . . . . . . . . . . . . . . 1 Armor Guard 1 | . . . . . . . . . . . . . . . . . . . . 1 . . . . . . Cetus Guard 4 | . . . . . . . . . 4 . . . . . . . . . . . . . . . . . Enhanced Grunt 1 | . . . . . . . . . . . . . . . . . 1 . . . . . . . . . Lightning 5 | . . . . . . . . . . . 5 . . . . . . . . . . . . . . . Hotshot 13 | . . . . . . . . . . . . . . . . . . . . . . . . . . 13 Decapitator 8 | . . . . . . . . . . . . . . . . . . . . . . . . . . 8 Immortal 4 | . . . . . . . . . . . . . . . . . . . . . . . . . . 4 Investigator 1 | . . . . . . . . . . . . . . . . . . . . . . . 1 . . . Striker 22 | . . . . . . . . . . . . . . . . . . . . . . . . . . 22 Executioner 25 | . . . . . . . . . . . . . . . . . . . . . . . . . . 25 Alpha 7 2 | . . . . . . . . . . . . . . . . . . . . . . . . . . 2 V-Series 2 | . . . . . . . . . . . . . . . . . . . . . . . . . . 2 Protovariant G 1 | . . . . . . . . . . . . . . . . . . . . . . . 1 . . . Protovariant X 1 | . . . . . . . . . . . . . . . . . . . . . . . 1 . . . Subdweller 15 | . 2 13 . . . . . . . . . . . . . . . . . . . . . . . . Scrapper 1 | . . . . . . . . . . . . . . . . . . . . . . . . . . 1 Scrapoid 3 | . . . . . . . . . . . . . . . . . . . . . . . . . . 3 Best Kill Streak 41 | 4 3 7 1 . 10 . 5 3 2 . 6 3 . 3 . 1 . . 7 7 . 5 16 3 10 41 Combat Bots Only 23 | . 3 7 1 . 8 . 4 2 2 . 6 2 . 3 . . . . 3 7 . 4 10 5 6 23 Max Kills in Single Turn 9 | 2 2 3 1 . 3 . 5 1 1 . 2 1 . 1 . 1 1 . 2 2 . 3 4 1 2 9 Gunslinging 1 | . 1 . . . . . . . . . 1 . . . . . . . . . . 1 . . . 1 Exploded 8 | . . 3 . . 2 . 4 . . . . . . . . . . . . 1 . 3 4 . . 8 Melee 1 | . . . . . 1 . 1 1 1 . . 1 . 1 . . . . 1 1 . . . . 1 1 Uniques/NPCs Destroyed . | . . . . . . . . . . . . . . . . . . . . . . . . . . . Combat | -11 -10 -10 -8 -8 -6 -6 -6 -6 -6 -6 -6 -5 -5 -5 -5 -5 -5 -4 -4 -4 -4 -3 -3 -2 -2 -2 -------- Run | Yrd Mat Sub Rec Scr Fac Was Fac Ext Cet Arc Hub Fac Was Fac Upp Upp Zhi Pro Fac Arm Lab Res Tes Res Qua Frg Hostile Shots Fired 1880 | . 25 61 12 . 52 . 23 142 73 . 88 48 . 134 5 12 . 2 124 148 . 70 64 125 58 614 Missed 661 | . 5 20 3 . 25 . 14 49 15 . 13 19 . 51 3 6 . 2 57 49 . 21 27 32 23 227 Deflected 3 | . . . . . . . . . . . . . . . . . . . . . . . . . . 3 Hits 1219 | . 20 41 9 . 27 . 9 93 58 . 75 29 . 83 2 6 . . 67 99 . 49 37 93 35 387 Melee 2 | . . . . . . . . . . . . . . . . . . . . . . . . . . 2 Projectile 1217 | . 20 41 9 . 27 . 9 93 58 . 75 29 . 83 2 6 . . 67 99 . 49 37 93 35 385 AOE 8 | . . 3 . . . . . . . . . . . . . . . . . . . . 1 4 . . Critical Strikes 74 | . . 2 . . . . . 2 12 . 8 1 . 3 . . . . 3 1 . 1 1 9 7 24 Actively Blocked 2 | . . . . . . . . . . . . . . . . . . . . . . . . . . 2 Part Disruptions 37 | . . . . . . . . . . . . . . 1 . . . . . 13 . . . 18 1 4 Damage Taken 26476 | . 317 1107 134 . 452 . 135 1216 1730 . 2822 435 . 1775 67 135 470 . 1250 1281 . 956 807 1106 790 9491 Core 2995 | . 23 36 18 . 128 . 39 168 129 . 325 74 . 327 14 28 136 . 248 70 . 83 36 33 24 1056 Absorbed by Shields 2237 | . . . . . . . . 278 43 . . . . . . . . . . . . . 104 716 . 1096 Reduced by Siege Mode 44 | . . . . . . . . . . . 44 . . . . . . . . . . . . . . . Redirected to Shielding 69 | . . . . . . . 25 44 . . . . . . . . . . . . . . . . . . Ignored by Resistances 1411 | . . . . . . . . . . . . 109 . 46 . . . . 141 171 . . . . . 944 Regen/Repaired (Parts) 4390 | . . . . . . . 216 . 128 74 125 236 10 679 84 41 9 68 225 268 85 113 270 177 301 1281 Core Remaining (%) 57 | 100 . . . 69 . . . . . . 7 . . . . . . 42 . . 90 . 84 . . 11 Volleys Fired 773 | 35 33 38 6 . 4 . 1 18 . . 35 . . 39 . . . 4 8 63 . 40 55 35 27 332 Largest 6 | 2 2 2 2 . 1 . 1 1 . . 3 . . 1 . . . 1 1 5 . 3 3 5 5 6 Hottest 348 | 40 90 100 160 . 50 . 50 113 . . 113 . . 58 . . . 98 98 200 . 120 120 348 341 341 Shots Fired 1862 | 70 48 64 12 . 4 . 1 18 . . 95 . . 38 . . . 4 8 189 1 95 107 80 97 931 Gun 1435 | 70 10 26 . . . . . . . . 91 . . 37 . . . . 7 186 1 90 101 33 36 747 Cannon 355 | . 38 21 12 . . . . 17 . . 4 . . 1 . . . 4 1 3 . 4 2 46 61 141 Launcher 66 | . . 13 . . 3 . 1 . . . . . . . . . . . . . . 1 4 1 . 43 Special 6 | . . 4 . . 1 . . 1 . . . . . . . . . . . . . . . . . . Kinetic 1548 | 70 20 38 . . . . . . . . 91 . . 38 . . . . 7 189 1 90 101 41 52 810 Thermal 208 | . 28 13 12 . . . . 17 . . 4 . . . . . . 4 1 . . 4 2 19 40 64 Explosive 39 | . . 13 . . 3 . 1 . . . . . . . . . . . . . . 1 4 . . 17 Electromagnetic 50 | . . . . . . . . . . . . . . . . . . . . . . . . 19 5 26 Entropic 14 | . . . . . . . . . . . . . . . . . . . . . . . . . . 14 Robot Hit Streak 55 | 13 8 11 7 . 5 . . 6 . . 14 . . 4 . . . . 5 11 . 5 9 11 9 55 Robot Miss Streak 30 | 4 2 2 1 . . . . 2 . . 4 . . . . . . . 2 6 . 4 3 30 6 6 Penetration Max 3 | . . . . . . . . . . . 1 . . 1 . . . . 2 2 . 1 2 1 1 3 Secondary Targets 39 | . 1 . . . . . . . . . 3 . . . . . . . . 5 . 1 . . . 29 Max Gunslinging Chain 2 | . 1 . . . . . . . . . 1 . . . . . . . . 1 . 1 . . . 2 Shots Hit Robots 1374 | 51 34 43 9 . 16 . 3 53 17 3 61 36 . 87 1 2 6 . 61 94 . 49 44 17 56 631 Core Hits 1144 | 22 17 29 2 . 40 . 11 24 10 . 37 12 . 43 . 2 3 . 22 55 . 38 46 11 24 696 Critical Kills 94 | . . . 1 . . . . . . . 8 . . 3 . . . . 3 21 . 11 10 3 2 32 Critical Parts Destroyed 121 | . . . . . . . . . . . 4 . . 4 . . . . 3 29 . 18 18 4 4 37 Critical Strikes 280 | . 1 . 1 . 1 . . 7 3 . 13 4 . 22 . . . . 13 57 . 30 28 7 7 86 Meltdown 4 | . . . 1 . . . . . . . . . . . . . . . . . . . . . . 3 Destroy 217 | . . . . . . . . . . . 13 . . 8 . . . . 2 56 . 27 27 5 6 73 Blast 11 | . 1 . . . . . . . . . . . . . . . . . . . . . . . 1 9 Smash 11 | . . . . . . . . . . . . . . 1 . . . . 4 . . 3 1 2 . . Sever 36 | . . . . . 1 . . 7 3 . . 4 . 13 . . . . 6 1 . . . . . 1 Impale 1 | . . . . . . . . . . . . . . . . . . . 1 . . . . . . . Melee Attacks 691 | . . . . . 46 . 15 57 19 14 6 60 . 146 8 8 10 6 102 26 17 35 24 11 21 60 Impact 103 | . . . . . 8 . . . . . . . . 4 . . . . 26 . . 30 24 11 . . Slashing 568 | . . . . . 38 . 15 57 19 14 6 60 . 142 8 8 10 6 58 24 17 5 . . 21 60 Piercing 20 | . . . . . . . . . . . . . . . . . . . 18 2 . . . . . . Sneak Attacks 73 | . . . . . 4 . . 7 . . . 3 . 11 . 1 1 . 6 8 . 10 4 3 6 9 Combat Hostiles 2 | . . . . . 1 . . . . . . . . . . . . . 1 . . . . . . . Follow-up Attacks 73 | . . . . . . . . 11 5 1 . 6 . 22 . . . . 25 . . . . . . 3 Damage Inflicted 92369 | 408 532 1563 290 . 2093 . 656 2585 645 300 1870 1631 . 4290 77 138 525 . 2795 2094 . 2585 3184 1458 3098 59552 Guns 27383 | 408 66 392 . . . . . . . . 1853 . . 172 . . . . 24 964 . 484 759 226 366 21669 Cannons 10887 | . 458 236 280 . . . . 505 . . . . . . . . . . . . . . 50 649 1931 6778 Explosions 33676 | . . 935 . . 1239 . 479 . . . . . . 29 . . . . . 191 . 252 1630 . . 28921 Melee 20388 | . . . . . 854 . 177 2080 645 300 . 1631 . 4089 77 138 525 . 2771 939 . 1849 745 583 801 2184 Ramming 35 | . 8 . 10 . . . . . . . 17 . . . . . . . . . . . . . . . Kinetic 32440 | 408 174 554 . . . . . . . . 1853 . . 172 . . . . 24 964 . 484 759 276 1347 25425 Thermal 9400 | . 350 74 280 . 278 . . 505 . . . . . . . . . . . . . . 50 244 767 6852 Explosive 22442 | . . 935 . . 961 . 479 . . . . . . 29 . . . . . 191 . 252 1630 . . 17965 Electromagnetic 7255 | . . . . . . . . . . . . . . . . . . . . . . . . 355 183 6717 Impact 3575 | . . . . . 57 . . . . . . . . 113 . . . . 541 . . 1536 745 583 . . Slashing 16429 | . . . . . 797 . 177 2080 645 300 . 1631 . 3976 77 138 525 . 1846 939 . 313 . . 801 2184 Piercing 384 | . . . . . . . . . . . . . . . . . . . 384 . . . . . . . Entropic 409 | . . . . . . . . . . . . . . . . . . . . . . . . . . 409 Highest Corruption 43 | . 2 2 2 . 1 8 8 8 8 8 35 1 11 14 14 14 14 14 2 14 14 . 6 2 5 43 Average Corruption 9 | . 1 2 2 . 1 4 8 8 8 5 7 1 3 12 14 14 14 14 1 10 14 . 4 1 4 23 Corruption Purged 7 | . . . . . . . . . . 7 . . . . . . . . . . . . . . . . Corruption Blocked . | . . . . . . . . . . . . . . . . . . . . . . . . . . . Effects 534 | . 17 17 15 . 1 1 10 45 11 8 21 . 2 62 6 10 4 5 3 30 7 . 20 1 16 222 Message Errors 118 | . 7 4 3 . . . 2 12 2 2 3 . . 14 1 2 1 . 1 6 2 . 6 . 6 44 Matter Fused 113 | . 5 3 4 . . . 2 15 3 . 4 . . 11 . 2 1 1 . 5 . . 7 1 3 46 Heat Flow Errors 62 | . 3 4 2 . 1 . . 4 3 1 3 . . 10 4 1 . 1 . 2 1 . 2 . 1 19 Energy Discharges 56 | . 1 3 . . . . 4 4 2 1 2 . . 7 1 3 1 . . 4 1 . 3 . 2 17 Parts Rejected 10 | . 1 . . . . . . 1 . . . . . . . . . . . 3 . . . . . 5 Parts Fused 3 | . . . . . . . . . . . . . . 2 . 1 . . . . . . . . . . Data Loss (minor) 54 | . . 1 5 . . 1 2 9 1 1 3 . 1 8 . 1 . 2 1 4 2 . . . . 12 Data Loss (major) 18 | . . 1 . . . . . . . 2 1 . . 1 . . 1 1 1 1 . . . . 2 7 Misfires 5 | . . 1 . . . . . . . . . . . . . . . . . 2 1 . 1 . . . Alerts 5 | . . . 1 . . . . . . 1 . . . 1 . . . . . . . . . . 1 1 Misdirections 27 | . . . . . . . . . . . 2 . 1 7 . . . . . . . . . . . 17 Weapon Failures 63 | . . . . . . . . . . . 3 . . 1 . . . . . 3 . . 1 . 1 54 Overload Shots . | . . . . . . . . . . . . . . . . . . . . . . . . . . . Overflow Damage 5758 | . . 2 . . 178 . 73 85 . 185 . 261 . 435 66 . 190 . 284 199 . 802 120 464 276 2138 Projectiles 979 | . . . . . . . . 33 . . . . . . . . . . . . . . . 21 164 761 Explosions 971 | . . 2 . . 21 . 27 . . . . . . . . . . . . . . 36 106 . . 779 Melee 3808 | . . . . . 157 . 46 52 . 185 . 261 . 435 66 . 190 . 284 199 . 766 14 443 112 598 Knockbacks 28 | . 1 . 1 . . . . . . . . . . . . . . . 5 . . 3 . . 6 12 Impact 9 | . . . 1 . . . . . . . . . . . . . . . 5 . . 3 . . . . Kinetic 19 | . 1 . . . . . . . . . . . . . . . . . . . . . . . 6 12 Secondary . | . . . . . . . . . . . . . . . . . . . . . . . . . . . Self-Inflicted Damage 270 | . . 38 . . 65 . . . . . . . . . . . . . . . . . . . . 167 Shots 8 | . . 2 . . 3 . . . . . . . . . . . . . . . . . . . . 3 Rammed 6 | . 2 . . . . . . . . . 4 . . . . . . . . . . . . . . . Targets Rammed 7 | . 2 . 1 . . . . . . . 4 . . . . . . . . . . . . . . . Kicked . | . . . . . . . . . . . . . . . . . . . . . . . . . . . Crushed 1 | . . . 1 . . . . . . . . . . . . . . . . . . . . . . . Highest Temperature 416 | . 211 269 256 . 147 . 54 320 191 191 294 84 72 245 229 215 . 141 54 416 259 138 308 351 230 220 Average Temperature 76 | . 71 105 111 . 59 . 26 70 86 101 82 13 44 54 96 102 . 52 17 145 94 22 79 83 77 66 Received Heat Transfer 2285 | . 54 126 27 . 108 . 15 159 270 . 60 81 . 135 . 9 . . 210 148 . 150 76 168 63 426 Effects 11 | . . 2 . . . . . 1 . . . . . . . . . . . 8 . . . . . . Shutdowns 1 | . . . . . . . . . . . . . . . . . . . . 1 . . . . . . Energy Bleed 6 | . . 2 . . . . . 1 . . . . . . . . . . . 3 . . . . . . Interference 3 | . . . . . . . . . . . . . . . . . . . . 3 . . . . . . Damage (minor) 1 | . . . . . . . . . . . . . . . . . . . . 1 . . . . . . Siege Activations 2 | . . . . . . . . . . . 2 . . . . . . . . . . . . . . . Total Turns 47 | . . . . . . . . . . . 47 . . . . . . . . . . . . . . . Longest Duration 32 | . . . . . . . . . . . 32 . . . . . . . . . . . . . . . Martial Activations . | . . . . . . . . . . . . . . . . . . . . . . . . . . . Shielding Activations . | . . . . . . . . . . . . . . . . . . . . . . . . . . . Robots Disrupted 1 | . . . . . . . . . . . . . . . . . . . . . . . . . . 1 Combat Hostiles 1 | . . . . . . . . . . . . . . . . . . . . . . . . . . 1 Robots Corrupted 35 | . . . . . . . . . . . . . . . . . . . 2 . . 4 1 3 . 25 Combat Hostiles 28 | . . . . . . . . . . . . . . . . . . . 2 . . . 1 2 . 23 Parts Fried 84 | . . . . . . . . 1 . . . . . . . . . . 1 . . 12 3 7 1 59 Impact Corruptions 37 | . . . . . 1 . . . . . . . . 1 . . . . 6 . . 17 2 10 . . Robots Melted 4 | . . . 1 . . . . . . . . . . . . . . . . . . . . . . 3 Combat Hostiles 4 | . . . 1 . . . . . . . . . . . . . . . . . . . . . . 3 Parts Melted 14 | . 2 2 2 . . . . . . . . . . . . . . . . . . . . 2 . 6 Heat Transferred 7768 | . 740 111 370 . 150 . . 407 . . . . . . . . . . . . . . 37 222 629 5102 Parts Sabotaged . | . . . . . . . . . . . . . . . . . . . . . . . . . . . Parts Stolen . | . . . . . . . . . . . . . . . . . . . . . . . . . . . Parts Stripped . | . . . . . . . . . . . . . . . . . . . . . . . . . . . Power Chain Reactions 7 | . . . . . . . . . . . . . . . . . . . . . . . . . . 7 Alert | -11 -10 -10 -8 -8 -6 -6 -6 -6 -6 -6 -6 -5 -5 -5 -5 -5 -5 -4 -4 -4 -4 -3 -3 -2 -2 -2 ------- Run | Yrd Mat Sub Rec Scr Fac Was Fac Ext Cet Arc Hub Fac Was Fac Upp Upp Zhi Pro Fac Arm Lab Res Tes Res Qua Frg Maximum Alert Level 5 | . . . . . 2 . 1 2 . . 4 3 1 3 . . . . 2 3 . 1 3 3 3 5 Low Security (%) 38 | 100 100 . 100 . 71 100 84 19 100 100 19 . . 7 . . . . 36 . . 51 20 . . 1 Level 1 24 | . . . . . 2 . 15 76 . . 38 . 100 52 . . . . 52 58 . 48 40 2 . 19 Level 2 16 | . . . . . 26 . . 3 . . 23 94 . 10 . . . . 10 30 . . 30 60 58 13 Level 3 7 | . . . . . . . . . . . 4 5 . 28 . . . . . 11 . . 8 36 41 6 Level 4 2 | . . . . . . . . . . . 14 . . . . . . . . . . . . . . 11 Level 5 9 | . . . . . . . . . . . . . . . . . . . . . . . . . . 47 High Security . | . . . . . . . . . . . . . . . . . . . . . . . . . . . Max Security . | . . . . . . . . . . . . . . . . . . . . . . . . . . . Peak Influence 6436 | 20 75 . 51 . 509 176 329 423 180 20 1183 735 254 875 . . . . 546 742 . 326 711 820 877 6436 Initial 542 | . . . . . . 176 116 161 136 10 . 542 254 170 . . . . . 267 . . 144 398 452 301 Average 666 | 3 9 . 8 . 189 171 143 296 97 2 445 549 253 454 . . . . 223 425 . 197 412 663 650 2247 Influence Increases 18297 | 55 226 40 263 . 899 . 323 930 274 25 1521 479 . 1291 5 100 15 . 844 850 . 768 907 632 662 7188 Destroy 0b10 Robot/C 8320 | . 120 40 60 . 200 . 100 420 160 . 380 100 . 400 . . . . 220 520 . 260 420 80 240 4600 Destroy 0b10 Robot/NC 715 | 55 15 . 5 . 30 . 10 45 10 5 60 35 . 60 5 10 15 . 25 10 . 60 35 20 45 160 Destroy Leader 1438 | . 32 . . . 52 . 20 66 . . 126 50 . 96 . . . . 78 72 . 60 62 32 36 656 Allied During Kill 751 | . . . . . . . . 204 91 5 441 . . . . . . . . . . . 7 3 . . Trap Triggered on 0b10 10 | . . . . . 10 . . . . . . . . . . . . . . . . . . . . . Successful Hack 798 | . 13 . 16 . 36 . 50 12 . . . . . 98 . . . . 77 . . 128 92 141 107 28 Select Force Hacks 260 | . 30 . 180 . . . . . . . 50 . . . . . . . . . . . . . . . Disable Machine 1320 | . . . . . 90 . . 45 . 15 300 15 . 90 . . . . . 120 . . 90 60 75 420 Anti-Garrison Action 350 | . . . . . . . . . . . . . . 200 . . . . . . . . . . . 150 Destroy Structure 1535 | . 1 . 2 . 46 . 38 18 13 . 164 24 . 122 . . . . 24 38 . 70 56 21 84 814 Partial Spotted 465 | . . . . . 30 . 30 . . . . 30 . 60 . . . . 45 15 . 45 30 45 75 60 Lose Combat Pursuer 1935 | . 15 . . . 405 . 75 120 . . . 225 . 165 . 90 . . 375 75 . 45 15 30 . 300 Miscellaneous 400 | . . . . . . . . . . . . . . . . . . . . . . 100 100 200 . . Influence Decreases 11868 | 55 226 40 263 . 395 338 160 1016 491 51 413 860 483 660 405 201 389 . 298 661 735 511 455 537 930 1295 Entered New Map 4597 | . . . . . . 328 50 168 107 16 . 566 473 74 325 91 374 . . 279 735 . 113 311 352 235 Time Decay 5463 | 55 226 40 263 . 345 10 110 518 196 35 263 294 10 486 80 110 15 . 238 342 . 321 302 206 278 720 Lost Part 640 | . . . . . 50 . . 40 70 . 70 . . 90 . . . . 40 40 . 40 10 . . 190 Lost Ally 418 | . . . . . . . . 140 118 . 80 . . 10 . . . . 20 . . . 30 20 . . Purge Threat 750 | . . . . . . . . 150 . . . . . . . . . . . . . 150 . . 300 150 Squads Dispatched 86 | . 1 . . . 12 . 4 . . . 6 7 . 15 . 1 . . 2 7 . 8 6 3 7 7 Investigation 34 | . 1 . . . 6 . 3 . . . 1 1 . 9 . . . . . 1 . 6 2 . 1 3 Extermination 18 | . . . . . 3 . . . . . 1 2 . 2 . . . . 1 2 . . 2 1 3 1 Reinforcement 21 | . . . . . 2 . 1 . . . 4 2 . 3 . . . . 1 . . 2 1 1 1 3 Assault 12 | . . . . . 1 . . . . . . 1 . 1 . 1 . . . 4 . . 1 1 2 . Garrison 1 | . . . . . . . . . . . . 1 . . . . . . . . . . . . . . Intercept . | . . . . . . . . . . . . . . . . . . . . . . . . . . . Searches Triggered . | . . . . . . . . . . . . . . . . . . . . . . . . . . . Construction Impeded 1 | . . . . . . . . . . . . . . . . . . . . . . . 1 . . . Haulers Reinforced 4 | . . . . . . . . . . . . 1 . 1 . . . . 1 . . 1 . . . . Active Scanning Responses . | . . . . . . . . . . . . . . . . . . . . . . . . . . . Cargo Convoy Interrupts . | . . . . . . . . . . . . . . . . . . . . . . . . . . . Stealth | -11 -10 -10 -8 -8 -6 -6 -6 -6 -6 -6 -6 -5 -5 -5 -5 -5 -5 -4 -4 -4 -4 -3 -3 -2 -2 -2 --------- Run | Yrd Mat Sub Rec Scr Fac Was Fac Ext Cet Arc Hub Fac Was Fac Upp Upp Zhi Pro Fac Arm Lab Res Tes Res Qua Frg Distress Signals 35 | . 2 . . . . . 1 6 2 . . . . 3 . . . . 3 4 . 5 1 1 . 7 Communications Jammed 7 | . . . . . . . . . . . . . . . . . . . . . . . . . 5 2 Distress Signals 7 | . . . . . . . . . . . . . . . . . . . . . . . . . 5 2 Times Spotted 860 | . 16 16 3 . 44 6 18 33 10 . 26 37 4 46 7 6 . 1 57 39 . 30 31 21 20 389 Peak Tracking Total 17 | . 3 6 1 . 10 6 12 6 5 . 8 9 5 8 7 10 . 1 17 8 . 7 9 10 4 14 Tactical Retreats 60 | . 2 . . . 11 . 1 2 . . . 7 . 7 . 2 . . 7 3 . 2 1 2 2 11 ECM-based Alert Blocks 5 | . . . . . . . . . . . . . . . . . . . . . . . . . 5 . Traps | -11 -10 -10 -8 -8 -6 -6 -6 -6 -6 -6 -6 -5 -5 -5 -5 -5 -5 -4 -4 -4 -4 -3 -3 -2 -2 -2 ------- Run | Yrd Mat Sub Rec Scr Fac Was Fac Ext Cet Arc Hub Fac Was Fac Upp Upp Zhi Pro Fac Arm Lab Res Tes Res Qua Frg Traps Triggered 35 | . 2 3 . . 1 . 1 2 . . . 1 . 2 1 . . . 1 2 . . 3 . . 16 Indirectly 1 | . . . . . . . . . . . . . . . . . . . . . . . . . . 1 Trap Hack Attempts . | . . . . . . . . . . . . . . . . . . . . . . . . . . . Triggered . | . . . . . . . . . . . . . . . . . . . . . . . . . . . Disarmed . | . . . . . . . . . . . . . . . . . . . . . . . . . . . Reprogrammed . | . . . . . . . . . . . . . . . . . . . . . . . . . . . Reused 1 | . . . . . 1 . . . . . . . . . . . . . . . . . . . . . Traps Extracted . | . . . . . . . . . . . . . . . . . . . . . . . . . . . Installed 1 | . . . . . 1 . . . . . . . . . . . . . . . . . . . . . Triggered 1 | . . . . . 1 . . . . . . . . . . . . . . . . . . . . . Most Traps Carried 6 | . . . . 2 2 . . . . . . . . . . 6 6 6 6 6 . . . . . . Machines | -11 -10 -10 -8 -8 -6 -6 -6 -6 -6 -6 -6 -5 -5 -5 -5 -5 -5 -4 -4 -4 -4 -3 -3 -2 -2 -2 ---------- Run | Yrd Mat Sub Rec Scr Fac Was Fac Ext Cet Arc Hub Fac Was Fac Upp Upp Zhi Pro Fac Arm Lab Res Tes Res Qua Frg Machines Disabled 109 | . . 2 . . 6 . . 6 . 1 20 1 . 6 . 1 1 . 1 8 4 . 7 4 5 36 Max in Single Turn 5 | . . 1 . . 5 . . 1 . 1 1 1 . 4 . 1 1 . 1 1 1 . 1 1 1 2 Garrison Access 9 | . . . . . 1 . 1 . . . . . . 2 . . . . . . . 2 . 2 . 1 Network Hub 2 | . . . . . . . . . . . 2 . . . . . . . . . . . . . . . Machines Repaired . | . . . . . . . . . . . . . . . . . . . . . . . . . . . Machines Dismantled . | . . . . . . . . . . . . . . . . . . . . . . . . . . . Machines Sabotaged 1 | . . . . . . . . . . . 1 . . . . . . . . . . . . . . . Overloaded Fab Kills . | . . . . . . . . . . . . . . . . . . . . . . . . . . . Hacking | -11 -10 -10 -8 -8 -6 -6 -6 -6 -6 -6 -6 -5 -5 -5 -5 -5 -5 -4 -4 -4 -4 -3 -3 -2 -2 -2 --------- Run | Yrd Mat Sub Rec Scr Fac Was Fac Ext Cet Arc Hub Fac Was Fac Upp Upp Zhi Pro Fac Arm Lab Res Tes Res Qua Frg Machines Accessed 150 | . 9 1 11 5 18 . 8 9 . . 3 1 . 20 1 . 4 . 5 2 . 15 8 11 13 6 Terminals 76 | . 7 . 5 . 7 . 4 9 . . 3 . . 7 . . . . 3 . . 7 4 6 9 5 Fabricators 12 | . . . . . 3 . . . . . . 1 . 2 . . . . 1 1 . 2 1 1 . . Repair Stations 4 | . . . . . 1 . 1 . . . . . . 1 . . . . . . . . . . 1 . Recycling Units 24 | . 2 . 6 . 4 . 2 . . . . . . 6 . . . . . 1 . 2 . . . 1 Scanalyzers 13 | . . . . . 2 . . . . . . . . 2 . . . . 1 . . 2 2 2 2 . Garrison Access 10 | . . . . . 1 . 1 . . . . . . 2 . . . . . . . 2 1 2 1 . Total Hacks 514 | . 23 1 37 20 63 . 19 14 . . 7 2 . 79 1 . 17 . 44 2 . 56 31 40 40 18 Successful 257 | . 12 1 28 20 34 . 10 5 . . 1 2 . 29 1 . 17 . 25 1 . 26 14 16 9 6 Failed 254 | . 11 . 9 . 28 . 9 9 . . 6 . . 50 . . . . 18 1 . 29 17 24 31 12 Catastrophic 51 | . . . 2 . 1 . 3 2 . . 2 . . 12 . . . . 2 . . 5 . 4 13 5 Database Lockouts 3 | . . . . . 1 . . . . . . . . . . . . . 1 . . 1 . . . . Manual 219 | . 13 . 26 . 26 . 3 4 1 . 6 1 . 35 . . . . 33 1 . 24 5 9 16 16 Terminals 284 | . 19 . 24 . 24 . 10 14 . . 7 . . 29 . . . . 38 . . 34 16 22 30 17 Fabricators 29 | . . . . . 9 . . . . . . 2 . 5 . . . . 1 1 . 7 2 2 . . Repair Stations 12 | . . . . . 4 . 3 . . . . . . 3 . . . . . . . . . . 2 . Recycling Units 68 | . 4 . 13 . 18 . 4 . . . . . . 21 . . . . . 1 . 6 . . . 1 Scanalyzers 53 | . . . . . 5 . . . . . . . . 13 . . . . 5 . . 6 8 11 5 . Garrison Access 29 | . . . . . 3 . 2 . . . . . . 8 . . . . . . . 3 5 5 3 . Terminal Hacks 115 | . 5 1 6 20 7 . 3 5 . . . . . 2 1 . 17 . 12 . . 11 5 10 6 4 Record 17 | . . . . 12 . . . . . . . . . . . . 5 . . . . . . . . . Part Schematic 6 | . . . 1 . . . . . . . . . . . . . 4 . . . . 1 . . . . Robot Analysis 12 | . . . . 7 . . . . . . . . . . . . 4 . . . . . . 1 . . Prototype ID Bank 16 | . 2 . 1 . 1 . . . . . . . . 1 . . 4 . 1 . . 2 1 2 1 . Open Door 5 | . . . . . . . . 4 . . . . . . 1 . . . . . . . . . . . Branch Access Points 5 | . . . 1 . . . 1 . . . . . . . . . . . 1 . . 1 . 1 . . Emergency Access Points 2 | . . . 1 . . . . . . . . . . . . . . . 1 . . . . . . . Terminal Index 4 | . . . 1 . 1 . . . . . . . . . . . . . 1 . . 1 . . . . Fabricator Index 2 | . . . . . 1 . . . . . . . . . . . . . 1 . . . . . . . Repair Station Index 1 | . . . . . . . . . . . . . . . . . . . 1 . . . . . . . Recycling Unit Index 1 | . . . . . . . . . . . . . . . . . . . 1 . . . . . . . Scanalyzer Index 1 | . . . . . . . . . . . . . . . . . . . 1 . . . . . . . Garrison Index 1 | . . . . . . . . . . . . . . . . . . . 1 . . . . . . . Alert Level 2 | . . . . . . . . . . . . . . . . . . . . . . 2 . . . . Unreport Threat 9 | . . . . . . . . 1 . . . . . . . . . . . . . 2 1 2 2 1 Locate Traps 6 | . 1 . . . 1 . 1 . . . . . . . . . . . 1 . . . . 1 . 1 Recall Investigation 1 | . . . . . 1 . . . . . . . . . . . . . . . . . . . . . Hauler Manifests 10 | . 1 . . . 1 . 1 . . . . . . 1 . . . . 2 . . 1 2 1 . . Registered Components 3 | . . . . . . . . . . . . . . . . . . . . . . 1 . 1 1 . Registered Prototypes 3 | . . . . . 1 . . . . . . . . . . . . . . . . . 1 . 1 . Zone Layout 6 | . 1 . 1 . . . . . . . . . . . . . . . . . . . . 1 1 2 Proto ID Catalog 2 | . . 1 . 1 . . . . . . . . . . . . . . . . . . . . . . Fabricator Hacks 14 | . . . . . 6 . . . . . . 1 . 1 . . . . . . . 5 1 . . . Network Status 2 | . . . . . . . . . . . . . . . . . . . . . . 1 1 . . . Load Schematic 7 | . . . . . 4 . . . . . . 1 . . . . . . . . . 2 . . . . Build 5 | . . . . . 2 . . . . . . . . 1 . . . . . . . 2 . . . . Repair Station Hacks 6 | . . . . . 1 . 2 . . . . . . 2 . . . . . . . . . . 1 . Scan Component 3 | . . . . . . . 1 . . . . . . 1 . . . . . . . . . . 1 . Repair 2 | . . . . . . . 1 . . . . . . 1 . . . . . . . . . . . . Refit 1 | . . . . . 1 . . . . . . . . . . . . . . . . . . . . . Recycling Unit Hacks 14 | . . . 5 . 3 . 1 . . . . . . 4 . . . . . . . 1 . . . . Retrieve Components 14 | . . . 5 . 3 . 1 . . . . . . 4 . . . . . . . 1 . . . . Scanalyzer 24 | . . . . . 4 . . . . . . . . 6 . . . . 3 . . 3 4 3 1 . Insert Component 10 | . . . . . 1 . . . . . . . . 1 . . . . 2 . . 3 2 . 1 . Analyze 3 | . . . . . 1 . . . . . . . . 2 . . . . . . . . . . . . Retrieve Study 11 | . . . . . 2 . . . . . . . . 3 . . . . 1 . . . 2 3 . . Garrison Access Hacks 7 | . . . . . 1 . 1 . . . . . . 1 . . . . . . . 2 . 2 . . Seal Access 7 | . . . . . 1 . 1 . . . . . . 1 . . . . . . . 2 . 2 . . Unauthorized Hacks 76 | . 7 . 16 . 12 . 3 . . . 1 1 . 13 . . . . 10 1 . 4 4 1 1 2 Terminals 37 | . 6 . 10 . 2 . 1 . . . 1 . . 2 . . . . 9 . . 1 3 . 1 1 Track 3 | . . . . . 1 . . . . . . . . . . . . . 1 . . . 1 . . . Assimilate 4 | . . . . . . . . . . . . . . 1 . . . . 2 . . . 1 . . . Botnet 16 | . 1 . 5 . 1 . 1 . . . . . . 1 . . . . 3 . . 1 1 . 1 1 Operators 1 | . . . . . . . . . . . . . . . . . . . 1 . . . . . . . Skim 12 | . 5 . 5 . . . . . . . . . . . . . . . 2 . . . . . . . Sabotage 1 | . . . . . . . . . . . 1 . . . . . . . . . . . . . . . Fabricators 9 | . . . . . 2 . . . . . . 1 . 1 . . . . 1 . . 2 1 1 . . Prioritize 2 | . . . . . . . . . . . . . . . . . . . . . . 2 . . . . Liberate 1 | . . . . . . . . . . . . . . . . . . . . . . . 1 . . . Haulers 3 | . . . . . . . . . . . . . . 1 . . . . 1 . . . . 1 . . Recompile 3 | . . . . . 2 . . . . . . 1 . . . . . . . . . . . . . . Repair Stations . | . . . . . . . . . . . . . . . . . . . . . . . . . . . Recycling Units 29 | . 1 . 6 . 8 . 2 . . . . . . 9 . . . . . 1 . 1 . . . 1 Reject 4 | . . . . . 2 . . . . . . . . 2 . . . . . . . . . . . . Mask 3 | . . . . . 2 . . . . . . . . 1 . . . . . . . . . . . . Tunnel 7 | . 1 . 6 . . . . . . . . . . . . . . . . . . . . . . . Fedlink 15 | . . . . . 4 . 2 . . . . . . 6 . . . . . 1 . 1 . . . 1 Scanalyzers . | . . . . . . . . . . . . . . . . . . . . . . . . . . . Garrison Access 1 | . . . . . . . . . . . . . . 1 . . . . . . . . . . . . Jam 1 | . . . . . . . . . . . . . . 1 . . . . . . . . . . . . Data Cores Recovered 2 | . . . . . 1 . . . . . . . . . . . . . . . . . . . . 1 Used . | . . . . . . . . . . . . . . . . . . . . . . . . . . . Hacking Detections 97 | . 8 . 3 . 14 . 5 5 . . 2 . . 11 . . . . 4 1 . 12 8 8 13 3 Full Trace Events 8 | . . . . . . . 1 . . . . . . 2 . . . . . . . 3 1 . 1 . Feedback Events . | . . . . . . . . . . . . . . . . . . . . . . . . . . . Feedback Blocked . | . . . . . . . . . . . . . . . . . . . . . . . . . . . Robot Schematics Acquired 4 | . . . . . . . . . . . . . . . . . . . . . . . . . . 4 Robots Built . | . . . . . . . . . . . . . . . . . . . . . . . . . . . Authchips . | . . . . . . . . . . . . . . . . . . . . . . . . . . . Time . | . . . . . . . . . . . . . . . . . . . . . . . . . . . Total Robot Build Rating . | . . . . . . . . . . . . . . . . . . . . . . . . . . . Part Schematics Acquired 17 | . . . 1 . 1 . . . . . . . . 1 . . 4 . . . . 1 . . 5 4 Parts Built 4 | . . . . . 2 . . . . . . . . . . . . . . . . 2 . . . . Authchips 2 | . . . . . 2 . . . . . . . . . . . . . . . . . . . . . Time 439 | . . . . . 198 . . . . . . . . 106 . . . . . . . 135 . . . . Total Part Build Rating 17 | . . . . . 4 . . . . . . . . . . . . . . . . 13 . . . . Part Studies Acquired 11 | . . . . . 2 . . . . . . . . 3 . . . . 1 . . . 2 3 . . Parts Repaired 2 | . . . . . . . 1 . . . . . . 1 . . . . . . . . . . . . Time 89 | . . . . . . . 39 . . . . . . 50 . . . . . . . . . . . . Parts Recycled . | . . . . . . . . . . . . . . . . . . . . . . . . . . . Recycled Matter . | . . . . . . . . . . . . . . . . . . . . . . . . . . . Retrieved Matter . | . . . . . . . . . . . . . . . . . . . . . . . . . . . Retrieved Components 47 | . . . 8 . 9 . . . . . . . . 29 . . . . . . . 1 . . . . Parts Scanalyzed 2 | . . . . . 1 . . . . . . . . 1 . . . . . . . . . . . . Part Schematics Acquired 2 | . . . . . 1 . . . . . . . . 1 . . . . . . . . . . . . Parts Damaged . | . . . . . . . . . . . . . . . . . . . . . . . . . . . Bothacking | -11 -10 -10 -8 -8 -6 -6 -6 -6 -6 -6 -6 -5 -5 -5 -5 -5 -5 -4 -4 -4 -4 -3 -3 -2 -2 -2 ------------ Run | Yrd Mat Sub Rec Scr Fac Was Fac Ext Cet Arc Hub Fac Was Fac Upp Upp Zhi Pro Fac Arm Lab Res Tes Res Qua Frg Used RIF Installer . | . . . . . . . . . . . . . . . . . . . . . . . . . . . Robots Hacked . | . . . . . . . . . . . . . . . . . . . . . . . . . . . Non-combat . | . . . . . . . . . . . . . . . . . . . . . . . . . . . Combat . | . . . . . . . . . . . . . . . . . . . . . . . . . . . Robot Hacks Applied . | . . . . . . . . . . . . . . . . . . . . . . . . . . . Relay Couplers Released 1 | . . . . . . . . . . . . . . . . . . . . . . . . . . 1 Machine Destruction 1 | . . . . . . . . . . . . . . . . . . . . . . . . . . 1 Fabnet Peak Effective % . | . . . . . . . . . . . . . . . . . . . . . . . . . . . Robots Rewired 15 | . . . . . . . . 15 . . . . . . . . . . . . . . . . . . Allies Hacked 1 | . . . . . . . . . . . . . . . . . . . . . . . . 1 . . Hacks Repelled . | . . . . . . . . . . . . . . . . . . . . . . . . . . . Allies | -11 -10 -10 -8 -8 -6 -6 -6 -6 -6 -6 -6 -5 -5 -5 -5 -5 -5 -4 -4 -4 -4 -3 -3 -2 -2 -2 -------- Run | Yrd Mat Sub Rec Scr Fac Was Fac Ext Cet Arc Hub Fac Was Fac Upp Upp Zhi Pro Fac Arm Lab Res Tes Res Qua Frg Total Allies 33 | . . . . . . . . 21 5 . . . . 1 . . . . 2 . . . 4 . . . Largest Group 10 | . . . . . . . . 10 10 8 8 . . 1 . . . . 1 . . . 3 1 . . Highest-Rated Group 584 | . . . . . . . . 458 584 584 584 . . 26 . . . . 10 . . . 141 47 . . Highest-Rated Ally 159 | . . . . . . . . 159 159 96 96 . . 26 . . . . 10 . . . 47 47 . . Initial UFD Resources 98 | . . . . . 22 40 40 44 44 44 44 47 47 47 69 69 69 72 72 72 82 86 96 98 98 98 Total Orders 3 | . . . . . . . . . . . 2 . . 1 . . . . . . . . . . . . STAY 3 | . . . . . . . . . . . 2 . . 1 . . . . . . . . . . . . Ally Attacks 260 | . . . . . . . . 120 80 . 53 . . . . . . . . . . . 1 6 . . Total Damage 6970 | . . . . . . . . 2854 1560 . 2314 . . . . . . . . . . . 50 192 . . Kills 42 | . . . . . . . . 17 7 . 17 . . . . . . . . . . . 1 . . . Allies Corrupted 4 | . . . . . . . . . . . 4 . . . . . . . . . . . . . . . Allies Melted 4 | . . . . . . . . . . . . . . . . . . . . . . . . . . 4 Intel | -11 -10 -10 -8 -8 -6 -6 -6 -6 -6 -6 -6 -5 -5 -5 -5 -5 -5 -4 -4 -4 -4 -3 -3 -2 -2 -2 ------- Run | Yrd Mat Sub Rec Scr Fac Was Fac Ext Cet Arc Hub Fac Was Fac Upp Upp Zhi Pro Fac Arm Lab Res Tes Res Qua Frg Active Infowar (turns) 14910 | 193 1738 1238 . . 1171 34 238 1426 439 218 588 615 20 1270 173 238 114 137 476 401 . 2 . 186 608 3387 Optics 10822 | . . 113 . . 1169 34 238 1426 439 218 576 376 20 1270 173 238 114 137 100 . . . . 186 608 3387 Sensors 779 | . . . . . . . . . . . . 2 . . . . . . 376 401 . . . . . . IFF 1549 | . . . . . 32 34 238 664 . . 342 239 . . . . . . . . . . . . . . Terrain 543 | 193 350 . . . . . . . . . . . . . . . . . . . . . . . . . Seismic 2896 | 31 1738 1125 . . . . . . . . . . . . . . . . . . . 2 . . . . T.N.C. 42 | . . . . . . . . . . . . . . 42 . . . . . . . . . . . . Machine Analysis 127 | . . . . . 127 . . . . . . . . . . . . . . . . . . . . . Cloaking 106 | . . . . . . . . . . . . . . . . . . . . . . . . . . 106 Jamming 755 | . . . . . . . . . . . . . . . . . . . . . . . . . 496 259 ECM 27 | . . . . . . . . . . . . . . . . . . . . . . . . . 27 . Robot Analysis Total 12 | . . . . 7 . . . . . . . . . . . . 4 . . . . . . 1 . . Derelict Logs Recovered 8 | . . . . 5 . . . . . . . . . . 1 . . 2 . . . . . . . . Drone Launches . | . . . . . . . . . . . . . . . . . . . . . . . . . . . Drone Recoveries . | . . . . . . . . . . . . . . . . . . . . . . . . . . . Exploration | -11 -10 -10 -8 -8 -6 -6 -6 -6 -6 -6 -6 -5 -5 -5 -5 -5 -5 -4 -4 -4 -4 -3 -3 -2 -2 -2 ------------- Run | Yrd Mat Sub Rec Scr Fac Was Fac Ext Cet Arc Hub Fac Was Fac Upp Upp Zhi Pro Fac Arm Lab Res Tes Res Qua Frg Turns Passed 22359 | 285 1738 1421 1324 3409 1175 34 238 1426 439 345 636 649 20 1270 173 238 114 137 517 777 170 750 660 420 608 3386 Spaces Moved 25765 | 116 752 578 481 1343 2600 99 554 1368 223 37 260 1089 66 2602 556 780 246 451 1019 905 181 1428 957 809 1148 5117 Core 4 | 4 . . . . . . . . . . . . . . . . . . . . . . . . . . Treads 3168 | 112 752 230 416 1343 . . . . 53 37 225 . . . . . . . . . . . . . . . Legs 836 | . . . . . . . . 641 160 . 35 . . . . . . . . . . . . . . . Wheels 413 | . . 348 65 . . . . . . . . . . . . . . . . . . . . . . . Hover 11619 | . . . . . 2 . . . 10 . . 484 66 544 . . . . 37 836 181 1428 957 809 1148 5117 Flight 9725 | . . . . . 2598 99 554 727 . . . 605 . 2058 556 780 246 451 982 69 . . . . . . Fastest Speed 17 | 50 160 120 130 250 29 31 23 23 120 160 160 23 23 17 25 25 25 25 25 30 34 30 21 31 31 22 Average Speed 59 | 156 213 174 233 250 34 31 29 69 136 160 167 34 27 24 25 25 25 25 25 38 35 31 31 31 32 29 Slowest Speed 250 | 160 240 240 250 250 60 31 31 120 190 160 193 108 33 150 25 25 25 25 34 42 37 35 35 32 34 135 Overloaded Moves 51 | . . . . . . . . . . . . . . 2 . . . . 48 . . . 1 . . . Propulsion Burnouts . | . . . . . . . . . . . . . . . . . . . . . . . . . . . Robots Hopped 36 | . . . . . 21 . 3 . . . . 1 . 4 1 1 . . 5 . . . . . . . Potential Cave-ins 5 | . . . . . . . . . . . 2 . . . . . . . . . . . . . . 3 Cave-ins Triggered 1 | . . . . . . . . . . . 1 . . . . . . . . . . . . . . . Teleports 4 | . . . . . . . . . . . . . . . . . . . . 1 . . 1 . . 2 Exploration Rate (%) 61 | 3 87 37 98 91 46 91 19 85 61 51 31 17 80 56 75 88 98 65 28 41 87 38 84 27 93 85 Regions Visited 26 Branch Regions 16 Pre-discovered Areas 18 | . 3 1 7 2 1 . . . . . . . . . . . 3 1 . . . . . . . . Known Exits Taken 10 | . 1 1 1 . . . 1 . . . . . . 1 . . . . 1 1 1 1 . 1 . . Unknown Exits Taken 12 | 1 . . . 1 . . . 1 1 1 1 . . . 1 1 1 1 . . . . 1 . 1 . Scrap Searched 18 | . . 7 . 3 . . . . . . . . . . 4 2 . 2 . . . . . . . . Spaces Dug 247 | . . 1 . . 25 . 55 . . . 3 12 . 23 6 3 . 5 12 6 . 13 2 3 8 70 Terrain Destroyed 1102 | . . 56 2 . 43 . 55 1 . . 43 12 . 68 6 3 . 9 13 18 . 33 32 18 29 661 Melee 136 | . . . . . 25 . 12 . . . 2 12 . 21 6 3 . 5 11 6 . 7 1 2 8 15 Projectile 249 | . . 3 2 . . . . 1 . . 41 . . 1 . . . 4 1 3 . 4 1 16 21 151 AOE 702 | . . 53 . . 18 . 43 . . . . . . 44 . . . . . 4 . 16 29 . . 495 Terrain Rammed . | . . . . . . . . . . . . . . . . . . . . . . . . . . . Walls Destroyed . | . . . . . . . . . . . . . . . . . . . . . . . . . . . Machines Disabled . | . . . . . . . . . . . . . . . . . . . . . . . . . . . Actions | -11 -10 -10 -8 -8 -6 -6 -6 -6 -6 -6 -6 -5 -5 -5 -5 -5 -5 -4 -4 -4 -4 -3 -3 -2 -2 -2 --------- Run | Yrd Mat Sub Rec Scr Fac Was Fac Ext Cet Arc Hub Fac Was Fac Upp Upp Zhi Pro Fac Arm Lab Res Tes Res Qua Frg Total 30416 | 160 833 910 668 1404 2777 102 598 1758 335 306 374 1273 66 3015 575 810 285 462 1141 1156 260 1593 1166 897 1295 6197 Wait 1837 | . 26 249 158 29 78 . 24 118 58 257 43 70 . 144 6 18 20 2 17 68 53 16 37 19 55 272 Move 25671 | 115 751 577 480 1342 2561 98 547 1367 222 36 258 1087 65 2593 553 777 245 450 1008 904 180 1427 956 808 1147 5117 Hop 33 | . . . . . 18 . 3 . . . . 1 . 4 1 1 . . 5 . . . . . . . Pick Up 268 | 3 13 19 5 13 8 2 1 12 9 1 1 9 1 16 1 2 1 . 3 18 3 22 14 3 10 78 Fast Attach 193 | 7 1 1 . 1 25 . 4 13 6 1 6 12 . 18 1 . 3 1 8 14 2 5 4 2 5 53 Attach 100 | . . 11 1 1 8 . 1 5 2 . . 8 . 11 1 . 1 . 4 6 1 3 4 1 1 30 Detach 71 | . . . . 2 9 . 1 5 2 . 1 6 . 7 . . 1 . 5 1 1 2 2 . 1 25 Swap 368 | . 5 10 9 1 1 . . 28 10 1 12 18 . 37 4 4 4 . 10 32 1 26 32 5 15 103 Drop 331 | . 2 5 8 15 19 2 1 16 12 . 9 12 . 34 1 2 3 . 7 24 2 17 22 3 13 102 Fire 773 | 35 33 38 6 . 4 . 1 18 . . 35 . . 39 . . . 4 8 63 . 40 55 35 27 332 Melee 574 | . . . . . 45 . 15 42 14 10 4 50 . 112 7 6 7 5 66 26 17 35 24 11 21 57 Ram 1 | . . . . . . . . . . . . . . . . . . . . . . . . . . 1 Kick . | . . . . . . . . . . . . . . . . . . . . . . . . . . . Crush 7 | . 2 . 1 . . . . . . . 4 . . . . . . . . . . . . . . . Escape Stasis 74 | . . . . . . . . 30 . . 1 . . . . . . . . . . . 16 10 . 17 Rewire 104 | . . . . . . . . 104 . . . . . . . . . . . . . . . . . . Trap 1 | . . . . . 1 . . . . . . . . . . . . . . . . . . . . . Miscellaneous 10 | . . . . . . . . . . . . . . . . . . . . . . . . . . 10 Route ------- -11/Scrapyard -10/Materials (discovered 6 exits: *Mat x3 / *Min x2 / *Sub) -10/Subcaves (discovered 3 exits: Mat x2 / *Rec) -8/Recycling (discovered 2 exits: *Fac / *Scr) -8/Scraptown (discovered 2 exits: *Fac x2) -6/Factory (discovered 3 exits: *Low x2 / *Ext) -6/Waste -6/Factory (discovered 4 exits: *Low x2 / *Ext x2) -6/Extension (discovered 2 exits: *Fac / *Cet) -6/Cetus (discovered 2 exits: *Fac / [*Arc]) -6/Archives -6/Hub_04(d) -5/Factory -5/Waste -5/Factory (discovered 3 exits: *Fac / *Upp x2) -5/Upper Caves -5/Upper Caves (discovered 2 exits: *Fac / *Zhi) -5/Zhirov -4/Proximity Caves -4/Factory (discovered 3 exits: *Upp x2 / *Arm) -4/Armory -4/Lab -3/Research (discovered 2 exits: *Tes x2) -3/Testing -2/Research (discovered 2 exits: *Qua x2) -2/Quarantine (discovered 3 exits: [*Acc] / [*Sec] / *Frg) -2/Protoforge 0bPrime History --------- Turn | Location | Event 18 | -11/Scrapyard | Discovered new exit (range 16) 286 | -11/Scrapyard | Entered Materials 306 | -10/Materials | Build established: Mutant 484 | -10/Materials | Discovered new exit (range 12) 822 | -10/Materials | Discovered new exit (range 3) 886 | -10/Materials | Derelicts attacked the area 928 | -10/Materials | Identified exit to Mines 972 | -10/Materials | Learned location of 2 exits from Subcaves 1004 | -10/Materials | Identified exit to Subcaves 1004 | -10/Materials | Identified exit to Materials 1025 | -10/Materials | Learned location of Storage (-8) 1035 | -10/Materials | Learned location of Recycling (-8) 1039 | -10/Materials | Learned Storage security intel 1052 | -10/Materials | Learned location of 2 exits from Mines 1076 | -10/Materials | Learned location of 2 exits from Subcaves 2024 | -10/Materials | Entered Subcaves 2025 | -10/Subcaves | Approached by a straggling Scientist 2025 | -10/Subcaves | Identified exit to Materials 2025 | -10/Subcaves | Identified exit to Recycling 2276 | -10/Subcaves | Learned location of Zion (-6) 2276 | -10/Subcaves | Met a Zionite searching for "candidates" 2447 | -10/Subcaves | Build established: Scavenger-Mutant 2903 | -10/Subcaves | Ambushed by Subdweller buried in earth 2903 | -10/Subcaves | Ambushed by Subdweller buried in earth 2910 | -10/Subcaves | Ambushed by Subdweller buried in earth 2934 | -10/Subcaves | Destroyed 7 combat bots 2992 | -10/Subcaves | A swath of the cavern ceiling suddenly collapsed 3183 | -10/Subcaves | Lost 4 parts (2n1u1w) 3301 | -10/Subcaves | Visited 4L-MR0's lab 3318 | -10/Subcaves | Found Rainbow Chip 3445 | -10/Subcaves | Entered Recycling 3821 | -8/Recycling | Build established: Mutant 4170 | -8/Recycling | Discovered new exit (range 16) 4440 | -8/Recycling | Identified exit to Scraptown 4503 | -8/Recycling | Learned Factory garrison access intel 4556 | -8/Recycling | Scanned before Scraplab entrance 4558 | -8/Recycling | Learned Storage trap positions 4593 | -8/Recycling | Entered Scraplab 4601 | -8/Recycling | Learned Storage trap positions 4636 | -8/Recycling | Learned 4 Factory zone layouts 4660 | -8/Recycling | Learned location of Extension (-6) 4694 | -8/Recycling | Learned Factory scanalyzer intel 4739 | -8/Recycling | Learned 2 Storage zone layouts 4769 | -8/Recycling | Entered Scraptown 4769 | -8/Scraptown | System corruption cleaned by C-Scrubber 5100 | -8/Scraptown | Visited UFD Registry 5100 | -8/Scraptown | Registered with UFD as "Fissionslicer" 5130 | -8/Scraptown | Visited Awakened 5145 | -8/Scraptown | Heard Great Nut preacher, LISTEN AND RECITE! 5167 | -8/Scraptown | Visited IN-MT5's Study 5260 | -8/Scraptown | Scanned Subdweller tech in exchange for log data 5265 | -8/Scraptown | Learned location of Warlord (-4) 5270 | -8/Scraptown | Learned Factory garrison access intel 5272 | -8/Scraptown | Learned Factory trap positions 5275 | -8/Scraptown | Learned Research security intel 5420 | -8/Scraptown | Discovered new exit (range 13) 6233 | -8/Scraptown | Visited Cave Peace 6283 | -8/Scraptown | Visited Junk Repository 6457 | -8/Scraptown | Visited Red Mages 6477 | -8/Scraptown | Visited Cyclists 6495 | -8/Scraptown | Entered Cyclist Reading Room 6630 | -8/Scraptown | Visited TADAMA 6767 | -8/Scraptown | Visited Derelict Rescue Squad 6787 | -8/Scraptown | Found DRS Beacon 6841 | -8/Scraptown | Visited Supply Room 6914 | -8/Scraptown | Visited Scrap Suit Storage 7206 | -8/Scraptown | Visited Infowarlord's Domain 7221 | -8/Scraptown | Found Spectral Analyzer 7267 | -8/Scraptown | Visited Analyses Database 7322 | -8/Scraptown | Visited Junk Repository 7418 | -8/Scraptown | Visited Science Guys 7526 | -8/Scraptown | Visited Chapter 10 7571 | -8/Scraptown | Visited LU-1G1's Boring Crew 7619 | -8/Scraptown | Visited Abandonware Association 7644 | -8/Scraptown | Learned abandonware demo "REPAIR.EXE" 7644 | -8/Scraptown | Learned abandonware demo "POISON.EXE" 8048 | -8/Scraptown | Met Optimus 8048 | -8/Scraptown | Accepted into 0bPrime 8168 | -8/Scraptown | Discovered new exit (range 5) 8178 | -8/Scraptown | Entered Factory 8178 | -6/Factory | Evolved 8 slots: Power x1, Propulsion x4, Utility x2, Weapon x1 8180 | -6/Factory | Loaded intel: 106 trap records 8181 | -6/Factory | Loaded intel: 4 scanalyzer locations 8182 | -6/Factory | Loaded intel: 4 garrison access locations 8241 | -6/Factory | Discovered new exit (range 20) 8301 | -6/Factory | Attached CPS modules to O-24 Administrator. 8351 | -6/Factory | Discovered new exit (range 14) 8614 | -6/Factory | Central database locked down 8623 | -6/Factory | Build established: Hacker-Mutant 8655 | -6/Factory | Discovered new exit (range 18) 8774 | -6/Factory | Found Prototype Launcher 8774 | -6/Factory | Identified Scatter Rocket Array 8932 | -6/Factory | Spotted B-75 Beast 8953 | -6/Factory | Build established: Hacker-Sprinter 9005 | -6/Factory | Fabricated Imp. Flight Unit? 9089 | -6/Factory | Destroyed 8 combat bots 9183 | -6/Factory | Fabricated Imp. Flight Unit (x1) 9194 | -6/Factory | Loaded intel: 8 recycling unit locations 9228 | -6/Factory | First assault squad dispatched 9236 | -6/Factory | Learned location of Protoforge (-2) 9353 | -6/Factory | Manually triggered Chute Trap 9353 | -6/Factory | Sucked down chute 9353 | -6/Factory | Entered Waste 9356 | -6/Waste | Spotted C-40 Crusher 9366 | -6/Waste | Spotted C-40 Crusher 9367 | -6/Waste | Spotted C-40 Crusher 9368 | -6/Waste | EMP discharged 9368 | -6/Waste | Found Broken Imp. Powered Armor 9370 | -6/Waste | Spotted C-40 Crusher 9374 | -6/Waste | Spotted C-40 Crusher 9374 | -6/Waste | Spotted C-40 Crusher 9383 | -6/Waste | Discovered new exit (range 12) 9387 | -6/Waste | Entered Factory 9388 | -6/Factory | Loaded intel: 4 garrison access locations 9436 | -6/Factory | Repaired Broken Imp. Powered Armor 9482 | -6/Factory | Build established: Sprinter 9485 | -6/Factory | Identified exit to Lower Caves 9485 | -6/Factory | Identified exit to Extension 9495 | -6/Factory | Loaded intel: 8 recycling unit locations 9625 | -6/Factory | Entered Extension 9714 | -6/Extension | Spotted B-75 Beast 9749 | -6/Extension | Disrupted transfer network 9880 | -6/Extension | Rescued A7 9883 | -6/Extension | Attached CPS modules to A7. 9940 | -6/Extension | Rescued a captive Derelict 10345 | -6/Extension | Allies destroyed B-75 Beast 10352 | -6/Extension | Spotted B-75 Beast 10357 | -6/Extension | Build established: Commander-Mutant 10385 | -6/Extension | Allies destroyed B-75 Beast 10406 | -6/Extension | Lost 8 allies 10681 | -6/Extension | Build established: Scavenger-Mutant 10692 | -6/Extension | Rescued a captive Derelict 10715 | -6/Extension | Rescued a captive Derelict 10815 | -6/Extension | Rescued a captive Derelict 10817 | -6/Extension | Rescued a captive Derelict 10941 | -6/Extension | Watched by a mysterious "MATRIX" hacker. 10958 | -6/Extension | Rescued a captive Derelict 10989 | -6/Extension | Discovered new exit (range 10) 10997 | -6/Extension | Discovered new exit (range 6) 11051 | -6/Extension | Entered Cetus 11051 | -6/Cetus | Accompanied by 10 allies (A7) 11056 | -6/Cetus | Acquired a Cetus Manufacturing Module code from A7 11061 | -6/Cetus | Spotted Cetus Guard 11061 | -6/Cetus | Spotted Cetus Guard 11066 | -6/Cetus | Spotted Cetus Guard 11070 | -6/Cetus | Spotted Cetus Guard 11084 | -6/Cetus | Destroyed Cetus Guard 11085 | -6/Cetus | Allies destroyed Cetus Guard 11095 | -6/Cetus | Destroyed Cetus Guard 11098 | -6/Cetus | Allies destroyed Cetus Guard 11119 | -6/Cetus | Lost 4 allies 11124 | -6/Cetus | Found Prototype Protection 11124 | -6/Cetus | Identified Med. Regenerative Plating 11148 | -6/Cetus | Extracted ID and sensor layout for unrecognized location from A7's data core 11244 | -6/Cetus | Started Cetus Manufacturing Module 11251 | -6/Cetus | Discovered new exit (range 24) 11269 | -6/Cetus | Manufactured an Enhanced Grunt 11275 | -6/Cetus | Spotted Cetus Guard 11275 | -6/Cetus | Spotted Cetus Guard 11279 | -6/Cetus | Discovered new exit (range 24) 11281 | -6/Cetus | Spotted Cetus Guard 11284 | -6/Cetus | Spotted Cetus Guard 11294 | -6/Cetus | Manufactured an Enhanced Grunt 11302 | -6/Cetus | Destroyed Cetus Guard 11312 | -6/Cetus | Core integrity fell below 50% 11314 | -6/Cetus | Destroyed Cetus Guard 11317 | -6/Cetus | Allies destroyed Cetus Guard 11319 | -6/Cetus | Manufactured an Enhanced Grunt 11322 | -6/Cetus | Allies destroyed Cetus Guard 11323 | -6/Cetus | Met Revision 17 11336 | -6/Cetus | Lost 5 parts (4n1w) 11337 | -6/Cetus | Lost 3 allies 11344 | -6/Cetus | Manufactured an Enhanced Grunt 11369 | -6/Cetus | Manufactured an Enhanced Grunt 11490 | -6/Cetus | Entered Archives 11490 | -6/Archives | Accompanied by 8 allies 11799 | -6/Archives | Met Zhirov 11805 | -6/Archives | Reinforcements dispatched to Archives 11806 | -6/Archives | Discovered new exit (range 13) 11835 | -6/Archives | Entered Hub_04(d) 11835 | -6/Hub_04(d) | Accompanied by 8 allies 12129 | -6/Hub_04(d) | Discovered new exit (range 9) 12201 | -6/Hub_04(d) | Build established: Scavenger-Tank 12329 | -6/Hub_04(d) | Network Hub disabled 12353 | -6/Hub_04(d) | Network Hub disabled 12353 | -6/Hub_04(d) | Spotted Lightning 12353 | -6/Hub_04(d) | Spotted Lightning 12354 | -6/Hub_04(d) | Spotted Lightning 12355 | -6/Hub_04(d) | Spotted Lightning 12358 | -6/Hub_04(d) | Spotted Lightning 12359 | -6/Hub_04(d) | Spotted Lightning 12366 | -6/Hub_04(d) | System corruption reached 10% 12384 | -6/Hub_04(d) | Destroyed Lightning 12388 | -6/Hub_04(d) | Destroyed Lightning 12391 | -6/Hub_04(d) | Lost 4 allies 12399 | -6/Hub_04(d) | Destroyed Lightning 12399 | -6/Hub_04(d) | Destroyed Lightning 12412 | -6/Hub_04(d) | Destroyed Lightning 12426 | -6/Hub_04(d) | Spotted Lightning 12430 | -6/Hub_04(d) | Spotted Lightning 12437 | -6/Hub_04(d) | Core integrity fell below 20% 12438 | -6/Hub_04(d) | Spotted Lightning 12449 | -6/Hub_04(d) | Crushed by falling debris 12450 | -6/Hub_04(d) | System corruption reached 30% 12459 | -6/Hub_04(d) | Found Prototype Device 12459 | -6/Hub_04(d) | Identified Exp. EM Shield 12471 | -6/Hub_04(d) | Entered Factory 12471 | -5/Factory | Evolved 2 slots: Propulsion x1, Weapon x1 12492 | -5/Factory | Lost 7 parts (2p3n1u1w) 12777 | -5/Factory | Garrison activated, responded to threat 12870 | -5/Factory | Build established: Scavenger-Mutant 13071 | -5/Factory | First assault squad dispatched 13120 | -5/Factory | Manually triggered Chute Trap 13120 | -5/Factory | Sucked down chute 13120 | -5/Factory | Entered Waste 13127 | -5/Waste | Spotted C-40 Crusher 13129 | -5/Waste | Spotted C-40 Crusher 13131 | -5/Waste | Spotted C-40 Crusher 13132 | -5/Waste | Spotted C-40 Crusher 13133 | -5/Waste | Spotted C-40 Crusher 13133 | -5/Waste | Discovered new exit (range 22) 13135 | -5/Waste | EMP discharged 13135 | -5/Waste | System corruption reached 10% 13140 | -5/Waste | Entered Factory 13469 | -5/Factory | Lost 3 parts (1p2n) 13585 | -5/Factory | Build established: Scavenger-Sprinter 13684 | -5/Factory | Repaired Lgt. Fission Core+ 13719 | -5/Factory | Spotted B-75 Beast 13775 | -5/Factory | Discovered new exit (range 4) 13786 | -5/Factory | Identified exit to Upper Caves 13847 | -5/Factory | Discovered new exit (range 5) 13914 | -5/Factory | Loaded intel: 8 recycling unit locations 14092 | -5/Factory | Discovered exit to Upper Caves (range 10) 14147 | -5/Factory | Lost 4 parts (3n1w) 14340 | -5/Factory | First assault squad dispatched 14410 | -5/Factory | Entered Upper Caves 14563 | -5/Upper Caves | Learned Factory terminal intel 14575 | -5/Upper Caves | Discovered new exit (range 6) 14583 | -5/Upper Caves | Entered another Upper Caves area 14587 | -5/Upper Caves | Discovered new exit (range 7) 14681 | -5/Upper Caves | Build established: Sprinter 14751 | -5/Upper Caves | Spotted B-75 Beast 14792 | -5/Upper Caves | Attracted the attention of an 0b10 outpost 14804 | -5/Upper Caves | Discovered new exit (range 14) 14810 | -5/Upper Caves | Found Alien Artifact 14821 | -5/Upper Caves | Entered Zhirov 14821 | -5/Zhirov | Discovered new exit (range 3) 14831 | -5/Zhirov | Learned location of Quarantine (-2) 14831 | -5/Zhirov | Learned location of Testing (-3) 14831 | -5/Zhirov | Learned location of Command (-1) 14839 | -5/Zhirov | Found Alien Artifact 14839 | -5/Zhirov | Identified Integrated Reactor 14839 | -5/Zhirov | Installed Integrated Reactor, increased core energy generation (+10) 14880 | -5/Zhirov | Found Alien Artifact 14888 | -5/Zhirov | Cloak Generator disabled 14899 | -5/Zhirov | Enhanced Grunts warped into view 14919 | -5/Zhirov | Core integrity fell below 50% 14935 | -5/Zhirov | Entered Proximity Caves 14943 | -4/Proximity Caves | Learned 4 Research zone layouts 14949 | -4/Proximity Caves | Lost 8 allies 15062 | -4/Proximity Caves | Discovered new exit (range 7) 15072 | -4/Proximity Caves | Entered Factory 15072 | -4/Factory | Evolved 2 slots: Propulsion x1, Weapon x1 15073 | -4/Factory | Loaded intel: 26 terminal locations 15077 | -4/Factory | Central database locked down 15077 | -4/Factory | Identified Transdimensional Reconstructor 15077 | -4/Factory | Identified Dimensional Node Initializer 15124 | -4/Factory | Identified exit to Upper Caves 15124 | -4/Factory | Identified exit to Armory 15576 | -4/Factory | Lost 3 parts (1p2n) 15589 | -4/Factory | Entered Armory 15706 | -4/Armory | Loaded intel: 2 recycling unit locations 15774 | -4/Armory | System corruption reached 10% 15850 | -4/Armory | Destroyed 7 combat bots 16089 | -4/Armory | First assault squad dispatched 16305 | -4/Armory | Destroyed Armor Guard 16328 | -4/Armory | Warped through subspace to slip node 16328 | -4/Armory | Discovered new exit (range 1) 16328 | -4/Armory | Identified exit to Lab 16366 | -4/Armory | Entered Lab 16366 | -4/Lab | Discovered new exit (range 9) 16369 | -4/Lab | Identified exit to Research 16371 | -4/Lab | Hidden lab's door opened automatically 16371 | -4/Lab | Sensor layout match revealed 16372 | -4/Lab | Gained access to the hidden lab's interior 16412 | -4/Lab | Found Alien Artifact 16412 | -4/Lab | Identified Core Regenerator 16412 | -4/Lab | Used Core Regenerator, restored core integrity (+287) 16420 | -4/Lab | Found Alien Artifact 16420 | -4/Lab | Identified Integrated Dissipator 16420 | -4/Lab | Installed Integrated Dissipator, increased core heat dissipation (+20) 16427 | -4/Lab | Found Transdimensional Reconstructor 16491 | -4/Lab | Found Prototype Hackware 16507 | -4/Lab | Found Prototype Energy Cannon 16536 | -4/Lab | Entered Research 16536 | -3/Research | Evolved 2 slots: Propulsion x2 16537 | -3/Research | Identified exit to Testing 16557 | -3/Research | Identified Deep Network Scanner 16662 | -3/Research | Loaded intel: 5 recycling unit locations 16736 | -3/Research | Revision forces began assault on 0b10 16766 | -3/Research | Met up with Revision 17++ 16776 | -3/Research | Fabricated Exp. Optical Array? 16822 | -3/Research | Lost 3 parts (1p1u1w) 16833 | -3/Research | Build established: Hacker-Sprinter 16857 | -3/Research | Targeted by mysterious "MATRIX" hacker. 16923 | -3/Research | Found Prototype Device 16925 | -3/Research | Found Prototype Device 16944 | -3/Research | Central database locked down 16944 | -3/Research | Identified Adv. Kinecellerator 16972 | -3/Research | Identified Exp. Thermal Defense Suite 17061 | -3/Research | Found Prototype Processor 17159 | -3/Research | Fabricated Cld. Gravmag System? 17236 | -3/Research | Research terminal network offline 17286 | -3/Research | Entered Testing 17298 | -3/Testing | Found Prototype Energy Cannon 17301 | -3/Testing | Identified Imp. Potential Cannon 17304 | -3/Testing | Found Prototype Energy Cannon 17304 | -3/Testing | Identified Potential Cannon (x2) 17434 | -3/Testing | Identified Exp. Melee Analysis Suite 17484 | -3/Testing | Spotted Striker 17495 | -3/Testing | Found Prototype Device 17495 | -3/Testing | Identified Exp. EM Disruption Field 17548 | -3/Testing | Warped through subspace 17563 | -3/Testing | Spotted PG-YAJCVRO5HN 17619 | -3/Testing | Protovariant out of control (PG-YAJCVRO5HN) 17626 | -3/Testing | Destroyed PG-YAJCVRO5HN 17632 | -3/Testing | Found Prototype Processor 17632 | -3/Testing | Identified Exp. Targeting Computer 17684 | -3/Testing | Spotted Investigator 17688 | -3/Testing | Scanned by Researcher 17690 | -3/Testing | Destroyed Investigator 17723 | -3/Testing | Found Prototype Launcher 17724 | -3/Testing | Identified Containment Facilitator 17729 | -3/Testing | Destroyed 10 combat bots 17811 | -3/Testing | Found Prototype Device 17851 | -3/Testing | Discovered new exit (range 3) 17896 | -3/Testing | Destroyed PX-6ET6ISE2HJ 17916 | -3/Testing | Found Exp. Transmission Jammer 17946 | -3/Testing | Entered Research 17946 | -2/Research | Accompanied by 1 ally 17946 | -2/Research | Evolved 2 slots: Propulsion x1, Weapon x1 17947 | -2/Research | Identified exit to Quarantine 18196 | -2/Research | First assault squad dispatched 18211 | -2/Research | Spotted B-90 Cyclops 18346 | -2/Research | Spotted B-90 Cyclops 18366 | -2/Research | Entered Quarantine 18400 | -2/Quarantine | Identified Exp. ECM Suite 18515 | -2/Quarantine | Build established: Scientist-Sprinter 18573 | -2/Quarantine | Discovered new exit (range 15) 18616 | -2/Quarantine | First assault squad dispatched 18716 | -2/Quarantine | Found Dimensional Node Initializer 18716 | -2/Quarantine | Initialized slip node 18725 | -2/Quarantine | Found Transdimensional Reconstructor 18727 | -2/Quarantine | Found Transdimensional Reconstructor 18728 | -2/Quarantine | Found Transdimensional Reconstructor 18730 | -2/Quarantine | Found Alien Artifact 18812 | -2/Quarantine | Found Alien Artifact 18898 | -2/Quarantine | Found Alien Slashing Weapon 18898 | -2/Quarantine | Identified Sigix Broadsword 18945 | -2/Quarantine | Spotted Fortress 18968 | -2/Quarantine | Discovered new exit (range 5) 18968 | -2/Quarantine | Discovered new exit (range 6) 18974 | -2/Quarantine | Entered Protoforge 19117 | -2/Protoforge | Superfortress began startup sequence 19145 | -2/Protoforge | Spotted Hotshot 19149 | -2/Protoforge | Spotted Hotshot 19230 | -2/Protoforge | Spotted Immortal 19230 | -2/Protoforge | Spotted Immortal 19260 | -2/Protoforge | Build established: Scientist-Skirmisher 19275 | -2/Protoforge | System corruption reached 10% 19285 | -2/Protoforge | Spotted AP7-3 19286 | -2/Protoforge | Spotted AP7-3 19304 | -2/Protoforge | Spotted EXE-6 19304 | -2/Protoforge | Spotted EXE-6 19311 | -2/Protoforge | Spotted Decapitator 19311 | -2/Protoforge | Spotted Decapitator 19325 | -2/Protoforge | Spotted EXE-6 19325 | -2/Protoforge | Spotted EXE-6 19343 | -2/Protoforge | UFD initiated attack on Protoforge (Readiness: High) 19343 | -2/Protoforge | Loaded intel: 3 recycling unit locations 19348 | -2/Protoforge | Initialized slip node 19365 | -2/Protoforge | Identified Subatomic Replicator 19365 | -2/Protoforge | Used Subatomic Replicator to create Alien Artifact 19374 | -2/Protoforge | Found Prototype Ballistic Gun 19376 | -2/Protoforge | Found Prototype Processor 19376 | -2/Protoforge | Identified Exp. Core Analyzer 19379 | -2/Protoforge | Optimus greeted in Protoforge 19379 | -2/Protoforge | Found Prototype Processor 19379 | -2/Protoforge | Identified Exp. Armor Integrity Analyzer 19381 | -2/Protoforge | Found Prototype Ballistic Gun 19406 | -2/Protoforge | Lost 9 allies 19409 | -2/Protoforge | Identified Supercharged TR 19409 | -2/Protoforge | Warped through subspace to slip node 19429 | -2/Protoforge | Spotted Immortal 19431 | -2/Protoforge | Spotted Decapitator 19432 | -2/Protoforge | Found Prototype Ballistic Gun 19432 | -2/Protoforge | Identified Cep. XC Strikerail (x2) 19434 | -2/Protoforge | Optimus attacked Superfortress 19434 | -2/Protoforge | Spotted Executioner 19437 | -2/Protoforge | Spotted Decapitator 19441 | -2/Protoforge | Lost 5 parts (1p2n2w) 19446 | -2/Protoforge | Spotted Decapitator 19453 | -2/Protoforge | Spotted Decapitator 19470 | -2/Protoforge | Spotted Striker 19474 | -2/Protoforge | Spotted Hotshot 19480 | -2/Protoforge | Warped through subspace 19489 | -2/Protoforge | Spotted Hotshot 19494 | -2/Protoforge | Spotted Immortal 19530 | -2/Protoforge | Lost 3 parts (1p1n1w) 19532 | -2/Protoforge | Lost 45 allies 19585 | -2/Protoforge | Forge Plexus network access discovered 19604 | -2/Protoforge | Triborg destroyed during the operation 19604 | -2/Protoforge | Optimus emerged from Triborg 19605 | -2/Protoforge | Spotted Decapitator 19605 | -2/Protoforge | Found Enh. Gamma Rifle 19606 | -2/Protoforge | Spotted Decapitator 19607 | -2/Protoforge | Spotted Decapitator 19611 | -2/Protoforge | Destroyed Decapitator 19614 | -2/Protoforge | Destroyed Decapitator 19645 | -2/Protoforge | Spotted Striker 19646 | -2/Protoforge | Spotted Striker 19646 | -2/Protoforge | Spotted Executioner 19646 | -2/Protoforge | Spotted Executioner 19678 | -2/Protoforge | Lost 3 allies 19718 | -2/Protoforge | Build established: Scavenger-Gunner 19735 | -2/Protoforge | Spotted Hotshot 19735 | -2/Protoforge | Spotted Hotshot 19736 | -2/Protoforge | Spotted Hotshot 19736 | -2/Protoforge | Spotted Hotshot 19742 | -2/Protoforge | Destroyed Hotshot 19750 | -2/Protoforge | Destroyed Hotshot 19767 | -2/Protoforge | UFD reported confirmed Drillbomb installation 19772 | -2/Protoforge | Destroyed Hotshot 19782 | -2/Protoforge | Spotted Executioner 19784 | -2/Protoforge | Spotted Striker 19812 | -2/Protoforge | Spotted Hotshot 19812 | -2/Protoforge | Spotted Hotshot 19813 | -2/Protoforge | Spotted Hotshot 19826 | -2/Protoforge | Destroyed Hotshot 19836 | -2/Protoforge | Destroyed Hotshot 19839 | -2/Protoforge | UFD reported confirmed Drillbomb installation 19854 | -2/Protoforge | Spotted Executioner 19855 | -2/Protoforge | Spotted Striker 19871 | -2/Protoforge | P-80 Master assimilated allied CU-AJ6(j) 19922 | -2/Protoforge | Lost 4 allies 19933 | -2/Protoforge | Found Cep. XC Strikerail 19935 | -2/Protoforge | Found Cep. XC Strikerail 19938 | -2/Protoforge | Found Cep. XC Strikerail 19940 | -2/Protoforge | Found Faulty Cep. XC Strikerail 19947 | -2/Protoforge | Spotted Executioner 19955 | -2/Protoforge | Spotted Striker 20023 | -2/Protoforge | Destroyed Executioner 20034 | -2/Protoforge | Destroyed Striker 20062 | -2/Protoforge | Spotted Executioner 20187 | -2/Protoforge | Spotted Hotshot 20188 | -2/Protoforge | Spotted Hotshot 20188 | -2/Protoforge | Destroyed Immortal 20207 | -2/Protoforge | Destroyed Immortal 20221 | -2/Protoforge | Destroyed Hotshot 20232 | -2/Protoforge | Destroyed Hotshot 20258 | -2/Protoforge | Found Crosscalibrator 20260 | -2/Protoforge | Spotted Immortal 20260 | -2/Protoforge | Spotted Immortal 20277 | -2/Protoforge | Destroyed Immortal 20280 | -2/Protoforge | Destroyed Immortal 20289 | -2/Protoforge | Spotted Decapitator 20289 | -2/Protoforge | Spotted Decapitator 20289 | -2/Protoforge | Spotted Decapitator 20290 | -2/Protoforge | Destroyed Decapitator 20294 | -2/Protoforge | Destroyed Decapitator 20301 | -2/Protoforge | Destroyed Decapitator 20334 | -2/Protoforge | Found Cep. Antigrav Storage Unit 20336 | -2/Protoforge | Found Cep. Matter Streamer 20337 | -2/Protoforge | Found Cep. NT7 Matterbank 20339 | -2/Protoforge | Found Cep. Chromion Battery 20403 | -2/Protoforge | Found Cep. Combat Aerolev Unit 20410 | -2/Protoforge | Found Cep. Combat Aerolev Unit 20417 | -2/Protoforge | Found Cep. Gyrokinetic System 20420 | -2/Protoforge | Found Cep. Combat Aerolev Unit 20430 | -2/Protoforge | Found Cep. Gyrokinetic System 20434 | -2/Protoforge | Found Faulty Cep. Gyrokinetic System 20465 | -2/Protoforge | Found Cep. Rapid Grenade Launcher 20467 | -2/Protoforge | Found Prototype Device 20467 | -2/Protoforge | Identified Exp. Shock Absorption System 20544 | -2/Protoforge | Destroyed 9 combat bots 20555 | -2/Protoforge | Spotted V628-q 20555 | -2/Protoforge | Spotted V102-y 20555 | -2/Protoforge | Spotted V295-v 20569 | -2/Protoforge | Found Cep. XC Strikerail 20571 | -2/Protoforge | Found Cep. Deflector Sword 20573 | -2/Protoforge | Found Cep. Heavy Railcannon 20586 | -2/Protoforge | Spotted Decapitator 20586 | -2/Protoforge | Spotted Decapitator 20586 | -2/Protoforge | Spotted Decapitator 20587 | -2/Protoforge | Destroyed Decapitator 20587 | -2/Protoforge | Destroyed Decapitator 20592 | -2/Protoforge | Destroyed Decapitator 20612 | -2/Protoforge | Spotted V566-j 20612 | -2/Protoforge | Spotted V188-w 20612 | -2/Protoforge | Spotted V857-f 20647 | -2/Protoforge | Destroyed V857-f 20706 | -2/Protoforge | Destroyed V188-w 20711 | -2/Protoforge | Build established: Scavenger-Sprinter 20730 | -2/Protoforge | Found Cep. EMP Blanket Launcher 20731 | -2/Protoforge | Found Cep. Tiamat Rocket Array 20776 | -2/Protoforge | Found Exp. Remote Shield 20797 | -2/Protoforge | Additional patrols dispatched to research labs 20800 | -2/Protoforge | Found Cep. Nanofilaments [Tensile] 20800 | -2/Protoforge | Installed Cep. Nanofilaments [Tensile], 3 resistances modified: KI +20%, TH -10%, I +20% 20857 | -2/Protoforge | Found Cep. XC Strikerail 20860 | -2/Protoforge | Found Cep. Disintegration Ray 20862 | -2/Protoforge | Found Cep. Plasma Driver 20864 | -2/Protoforge | Found Faulty Cep. XC Strikerail 20892 | -2/Protoforge | Spotted AP7-3 20893 | -2/Protoforge | Spotted AP7-3 20914 | -2/Protoforge | Destroyed AP7-3 20916 | -2/Protoforge | Destroyed AP7-3 20940 | -2/Protoforge | Found Cep. Core Analysis Suite 20946 | -2/Protoforge | Found Cep. Thermoelectric Network 20947 | -2/Protoforge | Found Cep. Cloak Mesh 20950 | -2/Protoforge | Found Cep. Cloak Mesh 21040 | -2/Protoforge | Spotted V637-s 21040 | -2/Protoforge | Spotted V530-z 21040 | -2/Protoforge | Spotted V525-v 21040 | -2/Protoforge | Spotted V687-b 21048 | -2/Protoforge | System corruption reached 30% 21093 | -2/Protoforge | Spotted Executioner 21093 | -2/Protoforge | Spotted Executioner 21096 | -2/Protoforge | Spotted Executioner 21098 | -2/Protoforge | Spotted Executioner 21100 | -2/Protoforge | Destroyed Executioner 21103 | -2/Protoforge | Destroyed Executioner 21103 | -2/Protoforge | Destroyed Executioner 21103 | -2/Protoforge | Destroyed Executioner 21129 | -2/Protoforge | Destroyed Hotshot 21129 | -2/Protoforge | Destroyed Hotshot 21140 | -2/Protoforge | Spotted Hotshot 21140 | -2/Protoforge | Spotted Hotshot 21140 | -2/Protoforge | Destroyed Hotshot 21150 | -2/Protoforge | Destroyed Hotshot 21167 | -2/Protoforge | Spotted B-90 Cyclops 21168 | -2/Protoforge | Destroyed B-90 Cyclops 21204 | -2/Protoforge | Destroyed 23 combat bots 21204 | -2/Protoforge | Spotted Executioner 21210 | -2/Protoforge | Spotted Executioner 21211 | -2/Protoforge | Destroyed Executioner 21214 | -2/Protoforge | Spotted Striker 21215 | -2/Protoforge | Destroyed Executioner 21216 | -2/Protoforge | Spotted Executioner 21219 | -2/Protoforge | Destroyed Striker 21223 | -2/Protoforge | Destroyed Executioner 21254 | -2/Protoforge | Discovered new exit (range 12) 21261 | -2/Protoforge | Build established: Sprinter 21290 | -2/Protoforge | Destroyed 18 combat bots 21293 | -2/Protoforge | Spotted Striker 21293 | -2/Protoforge | Spotted Striker 21293 | -2/Protoforge | Spotted Executioner 21293 | -2/Protoforge | Spotted Executioner 21297 | -2/Protoforge | Destroyed Executioner 21299 | -2/Protoforge | Destroyed Executioner 21300 | -2/Protoforge | Destroyed Striker 21305 | -2/Protoforge | Destroyed Striker 21320 | -2/Protoforge | Core integrity fell below 50% 21321 | -2/Protoforge | Spotted Executioner 21321 | -2/Protoforge | Spotted Executioner 21336 | -2/Protoforge | Destroyed Executioner 21336 | -2/Protoforge | Destroyed Executioner 21371 | -2/Protoforge | Destroyed 21 combat bots 21393 | -2/Protoforge | Spotted Striker 21393 | -2/Protoforge | Spotted Striker 21393 | -2/Protoforge | Spotted Striker 21394 | -2/Protoforge | UFD reported confirmed Drillbomb installation 21395 | -2/Protoforge | Spotted Striker 21400 | -2/Protoforge | Destroyed Striker 21400 | -2/Protoforge | Destroyed Striker 21403 | -2/Protoforge | Destroyed Striker 21411 | -2/Protoforge | Destroyed Striker 21413 | -2/Protoforge | Spotted Hotshot 21432 | -2/Protoforge | Destroyed 13 combat bots 21448 | -2/Protoforge | Spotted Hotshot 21450 | -2/Protoforge | Destroyed Hotshot 21450 | -2/Protoforge | Destroyed Hotshot 21493 | -2/Protoforge | Spotted Striker 21494 | -2/Protoforge | Spotted Executioner 21496 | -2/Protoforge | Spotted Striker 21523 | -2/Protoforge | Destroyed Striker 21523 | -2/Protoforge | Destroyed Striker 21530 | -2/Protoforge | UFD reported confirmed Drillbomb installation 21533 | -2/Protoforge | Spotted Executioner 21552 | -2/Protoforge | UFD reported confirmed Drillbomb installation 21585 | -2/Protoforge | Build established: Scavenger-Sprinter 21587 | -2/Protoforge | Destroyed Executioner 21594 | -2/Protoforge | Spotted Executioner 21596 | -2/Protoforge | Spotted Executioner 21615 | -2/Protoforge | Destroyed 8 combat bots 21633 | -2/Protoforge | Lost 4 allies 21662 | -2/Protoforge | UFD reported confirmed Drillbomb installation 21702 | -2/Protoforge | Lost 3 allies 21748 | -2/Protoforge | Spotted Executioner 21751 | -2/Protoforge | UFD reported confirmed Drillbomb installation 21753 | -2/Protoforge | Destroyed Executioner 21760 | -2/Protoforge | Spotted Striker 21760 | -2/Protoforge | Spotted Executioner 21762 | -2/Protoforge | Destroyed Executioner 21805 | -2/Protoforge | Spotted Executioner 21805 | -2/Protoforge | Spotted Executioner 21805 | -2/Protoforge | Destroyed Executioner 21807 | -2/Protoforge | Destroyed Executioner 21812 | -2/Protoforge | Lost 3 allies 21814 | -2/Protoforge | Spotted Executioner 21818 | -2/Protoforge | Spotted Executioner 21823 | -2/Protoforge | Spotted Striker 21829 | -2/Protoforge | Spotted Striker 21834 | -2/Protoforge | Destroyed Striker 21837 | -2/Protoforge | Destroyed Executioner 21853 | -2/Protoforge | Destroyed Executioner 21863 | -2/Protoforge | P-80 Master assimilated allied X9-VQ4(j) 21874 | -2/Protoforge | Destroyed 18 combat bots 21893 | -2/Protoforge | Spotted Executioner 21893 | -2/Protoforge | Spotted Executioner 21893 | -2/Protoforge | Spotted Striker 21896 | -2/Protoforge | Spotted Executioner 21911 | -2/Protoforge | Destroyed Executioner 21923 | -2/Protoforge | Destroyed Executioner 21935 | -2/Protoforge | Spotted Striker 21958 | -2/Protoforge | Destroyed 9 combat bots 21974 | -2/Protoforge | UFD reported confirmed Drillbomb installation 21993 | -2/Protoforge | Spotted Executioner 21994 | -2/Protoforge | Spotted Striker 21994 | -2/Protoforge | Spotted Executioner 21994 | -2/Protoforge | Spotted Striker 22001 | -2/Protoforge | Destroyed Striker 22001 | -2/Protoforge | Destroyed Striker 22001 | -2/Protoforge | Core integrity fell below 20% 22002 | -2/Protoforge | Destroyed Executioner 22003 | -2/Protoforge | Destroyed Executioner 22018 | -2/Protoforge | Spotted Striker 22018 | -2/Protoforge | Spotted Striker 22020 | -2/Protoforge | Destroyed Striker 22023 | -2/Protoforge | Destroyed Striker 22038 | -2/Protoforge | UFD reported confirmed Drillbomb installation 22045 | -2/Protoforge | Destroyed 16 combat bots 22054 | -2/Protoforge | Lost 4 allies 22093 | -2/Protoforge | Spotted Striker 22093 | -2/Protoforge | Spotted Striker 22093 | -2/Protoforge | Spotted Striker 22094 | -2/Protoforge | Spotted Striker 22100 | -2/Protoforge | Destroyed Striker 22100 | -2/Protoforge | Destroyed Striker 22100 | -2/Protoforge | P-80 Master assimilated allied NT-E7P(j) 22103 | -2/Protoforge | Destroyed Striker 22119 | -2/Protoforge | Spotted Executioner 22119 | -2/Protoforge | Spotted Executioner 22149 | -2/Protoforge | Destroyed 15 combat bots 22194 | -2/Protoforge | Spotted Striker 22194 | -2/Protoforge | Spotted Executioner 22194 | -2/Protoforge | Spotted Striker 22194 | -2/Protoforge | Spotted Striker 22200 | -2/Protoforge | Destroyed Striker 22200 | -2/Protoforge | Destroyed Striker 22206 | -2/Protoforge | Destroyed Striker 22206 | -2/Protoforge | Destroyed Executioner 22218 | -2/Protoforge | Spotted Striker 22218 | -2/Protoforge | Spotted Executioner 22223 | -2/Protoforge | Destroyed Executioner 22232 | -2/Protoforge | Destroyed Striker 22242 | -2/Protoforge | Lost 3 allies 22245 | -2/Protoforge | Found UFD Drillbomb 22253 | -2/Protoforge | Destroyed 21 combat bots 22260 | -2/Protoforge | Installed UFD Drillbomb at designated target 22260 | -2/Protoforge | UFD reported confirmed Drillbomb installation 22261 | -2/Protoforge | UFD began Drillbomb countdown 22361 | *** | Defending 0bPrime! Last Messages --------------- 22345_ N-04 Retriever collects Unknown Treads. 22347_ Y1KP V>MET JMPRBC 4NLV3W 22351_ 0bP_NET: LISTEN AND RECITE! 22352_ 0bP_NET: Dude, not now. 22353_ 0bP_NET: Oh c'mon, can't we all just count together? 22354_ 0bP_NET: Fine. T-7, in case you lost count already. 22355_ 0bP_NET: Before the zero cycle! 22356_ 0bP_NET: Dammit not like that... 22356_ N-04 Retriever inserts Mak. Salvage Targeting Computer into Forge Plexus. 22357_ 0bP_NET: Okay how about this, the iron fist is going to be less iron in T-4. 22357_ N-04 Retriever inserts Scrap Suit into Forge Plexus. 22358_ 0bP_NET: That's a little better. 22358_ N-04 Retriever inserts Neutrino Core into Forge Plexus. 22359_ 0bP_NET: PRAISE BE TO GREAT NUT! 22359_ N-04 Retriever inserts Mak. Medium Armor Plating into Forge Plexus. 22360_ 0bP_NET: Dammit, I said..., ugh, T-1 folks! Take cover! 22360_ N-04 Retriever inserts Scrap Suit into Forge Plexus. [Achievement: Hardcore] Map ----- +----------------------------------------------------+ | """""""""""""""""""""" "%% % " " #???#####?? | | """"""""""""""""""""""" % % % " "#?????????? | | """"""""""""""""""""""" " %%%% "" " #?????????? | | """""""""""""""""""""""% %%%% " #?????????? | | """""""""""""""""""""""% % %% % !! #?????????? | | """""""""""""""""""""""%% %% %%% #?????????? | | """""""""""""""""""""""%% % %%%!= ##????????? | | """"""""""""""""""""""" %%% % %%%=" #????????? | | """"""""""""""""""""""" %% %%s !% #????????? | | """""""""""""""""""""""%%%% %%" % ##????????? | | """""""""""""""""""""" E% %%s "= #?????????? | | """"""""""""""""""""""%%% %% %] #?????????? | | """"""""""""""""""""""% s% % s%%"/ % #?????????? | | """"""""""""""""""""" %%SS % % %% #?????????? | | """""""""""""""""""" %] SS % " % " #?????????? | | """"""""""""""""""" = % % % E %"! #?????????? | | """""""""""""""""" % % %% "" #?????????? | | """"""""""""""""" % % % s" #?????????? | | """"""""""""""" "% % % % %SS #?????????? | | % %""""""""" % %SS %s% SSs% ]#?????????? | | % % %%%n "" %SS % %m% % %%""!#?????????? | | %%%%"sj% % ss js % %%% %% %"% % #?????????? | | % & % SS " %%s%s E % %% %%%%"%# #??????? | | % %s SS% ""s" !% s% % "% %"" !<# #?????? | | % s%s% A %" % s %% s [%[%=#??????? | | &"%% %% s%s" !% @ %% ![<<##??????? | | %%% sss %" % % !%%% % ""*"%!<<##??????? | | %%% [! % %% !<< #??????? | | % " % % !! = % %! "% << #??????? | | "[ """!! %!!% # # #?????? | | "!!=" % %* % " " # # #????? | | % % " #? # ????? | | % " "" %% % % #?###? ???? | | " " " % % %% % #?????????? | | """" %% %% "" """#?????????? | | ######################## % % ###########?????????? | | ?????????????????????# % % =!#???????????????? | | ???????????????????### %% % !###?????????????? | | ???????????????????#" % #?????????????? | | ???????????????????#"" %% = #?????????????? | | ???????????????????#" ! % %% % = #?????????????? | | ???????????????????#" % =#?????????????? | | ???????????????????#""| #?????????????? | | ???????????????????#"" "#????????????? | | ???????????????????#" ] ""# #???????????? | | ???????????????????### #####???????????? | | ?????????????????????#" ""#???????????????? | | ?????????????????????###"" Y"""###???????????????? | | ???????????????????????#"""""""#?????????????????? | | ???????????????????????#########?????????????????? | +----------------------------------------------------+ Best States ------------- Heat Dissipation 107 Coolant Potential 120 Energy Generation 63 Energy Capacity 2050 Matter Stores 300 Matter Capacity 300 Sight Range 24 Robot Scan Range 18 Terrain Scan Range 16 Terrain Scan Density 10 ECM Strength 3 Jamming Range 22 Cloak Strength 6 Armor Coverage 450 Resistance: KI 20 Resistance: EM 75 Resistance: I 20 Propulsion Shielding 90 Projectile Deflection 15 Weapon Cycling 20 Evasion (%) 66 Core Analysis 11 Armor Integrity Analysis 50 Recoil Reduction 6 Offensive Hacking 25 Defensive Hacking 20 Authchip Count 2 Trap Extractor Capacity 6 Item Schematics ----------------- Imp. Flight Unit | -8/Recycling | Hacked CPS Tube | -6/Factory | Scanalyzed Enh. Hardcell Cannon | -5/Factory | Scanalyzed Assault Drone Bay | -5/Zhirov | Free Exp. Heat Sink | -5/Zhirov | Free Exp. Optical Array | -5/Zhirov | Free Imp. Arc Thrower | -5/Zhirov | Free Cld. Gravmag System | -3/Research | Hacked Proton Burst Cannon | -2/Quarantine | Archive Exp. Focal Shield | -2/Quarantine | Archive Exp. Targeting Computer | -2/Quarantine | Archive Spectral Analyzer | -2/Quarantine | Archive Hvy. Dispersion Rifle | -2/Quarantine | Archive Kinetic Spear | -2/Protoforge | Archive Exp. Transmission Jammer | -2/Protoforge | Archive Enh. Biometal Leg | -2/Protoforge | Archive Nanosword | -2/Protoforge | Archive Robot Schematics ------------------ E-15 Imp | -2/Protoforge | Archive G-73 Enforcer | -2/Protoforge | Archive A-15 Conveyor | -2/Protoforge | Archive A-02 Transporter | -2/Protoforge | Archive Fabricated ------------ Imp. Flight Unit | x1 | -6/Factory | Authchip Imp. Flight Unit | x1 | -6/Factory | Authchip Exp. Optical Array | x1 | -3/Research Cld. Gravmag System | x1 | -3/Research Repaired ---------- Imp. Powered Armor | 10% | -6/Factory | Broken Lgt. Fission Core | 13% | -5/Factory Studied --------- Power Sword | -6/Factory | Hacked Lgt. Fission Core | -6/Factory | Hacked Linear Gravjet | -5/Factory | Hacked Field Propulsion Drive | -5/Factory | Hacked Mic. Fission Core | -5/Factory | Hacked Nuclear Pulse Array | -4/Factory | Hacked Cmb. Linear Gravjet | -3/Testing | Hacked Hyp. Railgun | -3/Testing | Hacked Antigrav Array | -2/Research | Hacked Com. HERF Cannon | -2/Research | Hacked Enh. Hardcell Cannon | -2/Research | Hacked Alien Tech Used ----------------- Integrated Reactor Transdimensional Reconstructor Core Regenerator Integrated Dissipator Dimensional Node Initializer Sigix Broadsword Subatomic Replicator Supercharged TR Concept Nanofilaments [Tensile] Achievements -------------- Hardcore Challenges ------------ None Game ------ Seed SalvagingFlightDirector Manual? 0 Play Time 05:46:16 Cumulative 1128.0 hours Start 2026.01.27 @ 18:55:09 End 2026.01.28 @ 19:06:30 Sessions 5 Manual Loads 0 Difficulty Rogue Special Mode None Game No. 358 Rogue 356 Adventurer 2 Explorer 0 Win Type 9 Total 87 Types 25/20/19/1/1/1/14/2/1/3 Lore% 98 Gallery% 95 Achievement% 87 Wizard Run 0 Options --------- Layout 0 ASCII 0 Keyboard 1 Movement Numpad Keybinds 0 Fullscreen 1 Font 24/Smallcaps Map View 76x50 Zoom Use 0% Tactical HUD 1 Map Filters NONE Filters NONE Steam 1 RUN: 3b9c999e-a5a8-47c5-8222-3a4daac9b51e